Workbook

Sheet AnaSayfa
E6: © Burçin SARIHAN - 2014

Sheet Bilgiler (hidden)
A1: Firma Adı: | C1: 2014-01-28T10:32:00 | D1: 1 | G1: vdad | H1: vdil | I1: vdkod | O1: İLLER
A2: Vergi Dairesi: | G2: 19 MAL MÜDÜRLÜĞÜ | H2: SAMSUN | I2: 55110 | O2: ADANA
A3: Vergi No: | G3: 19 MAYIS VERGİ DAİRESİ | H3: SAMSUN | I3: 55251 | O3: ADIYAMAN
A4: İştigal Konusu: | G4: 2 EYLÜL VERGİ DAİRESİ | H4: ESKİŞEHİR | I4: 26253 | O4: AFYON
A5: Kanuni Adresi: | G5: 23 TEMMUZ VERGİ DAİRESİ | H5: HATAY | I5: 31201 | O5: AĞRI
A6: İlçe: | G6: 30 AĞUSTOS VERGİ DAİRESİ | H6: KÜTAHYA | I6: 43201 | O6: AKSARAY
A7: İl: | B7: BURSA | G7: 5 OCAK VERGİ DAİRESİ | H7: ADANA | I7: 1251 | O7: AMASYA
A8: Telefon: | G8: 9 EYLÜL VERGİ DAİRESİ | H8: İZMİR | I8: 35251 | O8: ANKARA
A9: Faks: | G9: ABANA MAL MÜDÜRLÜĞÜ | H9: KASTAMONU | I9: 37112 | O9: ANTALYA
A10: Ticaret Sicil No: | G10: ACIGÖL MAL MÜDÜRLÜĞÜ | H10: NEVŞEHİR | I10: 50107 | O10: ARDAHAN
A11: Önceki Dönem: | B11: 31.12.2012 | G11: ACIPAYAM VERGİ DAİRESİ | H11: DENİZLİ | I11: 20261 | O11: ARTVİN
A12: Cari Dönem: | B12: 31.12.2013 | G12: ACISU VERGİ DAİRESİ | H12: KOCAELİ | I12: 41290 | O12: AYDIN
B13: Önceki Dönem | C13: Cari Dönem | G13: ADAKLI MAL MÜDÜRLÜĞÜ | H13: BİNGÖL | I13: 12105 | O13: BALIKESİR
B14: =B11 -> 31.12.2012 | C14: =B12 -> 31.12.2013 | G14: ADALAR VERGİ DAİRESİ | H14: İSTANBUL | I14: 34295 | O14: BARTIN
A15: İlaveler (K.K.E.G.) | B15: 0 | C15: 0 | G15: ADİLCEVAZ MAL MÜDÜRLÜĞÜ | H15: BİTLİS | I15: 13101 | O15: BATMAN
A16: Dönem Karı ve Yasal Yük. Karş. (-) | B16: 0 | C16: 0 | G16: ADIYAMAN VERGİ DAİRESİ | H16: ADIYAMAN | I16: 2260 | O16: BAYBURT
A17: Önceki Yıllarda Ayrılan 1.Tertip Kan.Yed.Akçe | B17: 0 | C17: 0 | G17: AFŞİN VERGİ DAİRESİ | H17: K.MARAŞ | I17: 46261 | O17: BİLECİK
A18: Genel Kurul'un Tespit Ettiği Toplam Dağıtılacak Kar | B18: 0 | C18: 0 | G18: AĞAÇÖREN MAL MÜDÜRLÜĞÜ | H18: AKSARAY | I18: 68101 | O18: BİNGÖL
A19: Personele Verilecek Temettü | B19: 0 | C19: 0 | G19: AĞIN MAL MÜDÜRLÜĞÜ | H19: ELAZIĞ | I19: 23101 | O19: BİTLİS
A20: Yönetim Kuruluna Verilecek Temettü | B20: 0 | C20: 0 | G20: AĞLASUN MAL MÜDÜRLÜĞÜ | H20: BURDUR | I20: 15101 | O20: BOLU
A21: Yedeklerden Dağıtım | B21: 0 | C21: 0 | G21: AĞLI MAL MÜDÜRLÜĞÜ | H21: KASTAMONU | I21: 37116 | O21: BURDUR
A22: 1 Hisse Bedeli | B22: 1 | C22: 1 | G22: AĞRI VERGİ DAİRESİ | H22: AĞRI | I22: 4260 | O22: BURSA
A23: Dönem Başı Yarı Mamül Stoğu | B23: 0 | C23: 0 | G23: AHIRLI MAL MÜDÜRLÜĞÜ | H23: KONYA | I23: 42124 | O23: ÇANAKKALE
A24: Dönem Başı Mamül Stoğu | B24: 0 | C24: 0 | G24: AHLAT MAL MÜDÜRLÜĞÜ | H24: BİTLİS | I24: 13102 | O24: ÇANKIRI
A25: Dönem Başı Ticari Mal Stoğu | B25: 0 | C25: 0 | G25: AHMETLİ MAL MÜDÜRLÜĞÜ | H25: MANİSA | I25: 45113 | O25: ÇORUM
A26: Mali Tablolarda Kullanılacak Para Birimi | B26: TL | G26: AKÇAABAT VERGİ DAİRESİ | H26: TRABZON | I26: 61260 | O26: DENİZLİ | CU26: 2005-09-30 | CZ26: BİRİM BİLGİ TEKNOLOJİLERİ TİC. A.Ş.
A27: Ticari Kar | B27: =#REF! ->  | C27: =#REF! -> 
A28: İlaveler (KKEG) | B28: =Bilgiler!B15 -> 0 | C28: =Bilgiler!C15 -> 0
A29: Kurumlar Vergisi Matrahı | B29: =B27+B28 ->  | C29: =C27+C28 -> 
A30: Kurumlar Vergisi | B30: =B29*20% ->  | C30: =C29*20% -> 
A31: Ödenmiş Sermaye | B31: ='BİLANÇO-P'!D94-'BİLANÇO-P'!D95 -> 160000 | C31: ='BİLANÇO-P'!F94-'BİLANÇO-P'!F95 -> 160000
A32: 1.Tertip Kanuni Yedek Akçe Tavanı (Ödenmiş Sermaye x %20) | B32: =B31*20% -> 32000 | C32: =C31*20% -> 32000
A33: Geçmiş Yıl Zararları | B33: ='BİLANÇO-P'!D113 -> 0 | C33: ='BİLANÇO-P'!F113 -> 0
A34: Geçmiş Yıl Zararları Mahsubundan Sonra Kalan Tutar | B34: =IF(#REF!>B33,#REF!-B33,0) ->  | C34: =IF(#REF!>C33,#REF!-C33,0) -> 
A35: Önceki Yıllarda Ayrılan 1.Tertip Kan.Yed.Akçe | B35: =Bilgiler!B17 -> 0 | C35: =Bilgiler!C17 -> 0
A36: Ayrılabilir 1.tertip Yedek Akçe (1.Ter.Yed.Akçe-Önc.Yıll.Ayrılan 1.Ter.Yed.Akçe) | B36: =IF(B32-B35<0,0,B32-B35) -> 32000 | C36: =IF(C32-C35<0,0,C32-C35) -> 32000
A37: Dönem 1.Tertip Yedek Akçe (Net Kar x %5) | B37: =IF(B34*5%<=B36,B34*5%,B36) ->  | C37: =IF(C34*5%<=C36,C34*5%,C36) -> 
A38: Genel Kurul Kararı Dağıtılacak Toplam Brüt Kar | B38: =Bilgiler!B18 -> 0 | C38: =Bilgiler!C18 -> 0
A39: ORTAKLARA 1. TEMETTÜ HESAPLAMASI
A40: Ödenmiş Sermayenin %5'i | B40: =B31*5% -> 8000 | C40: =C31*5% -> 8000
A41: 1. Temettü | B41: =IF(B38*5%>B40,B40,B38) -> 0 | C41: =IF(C38*5%>C40,C40,C38) -> 0
A42: Personele Verilecek Temettü | B42: =Bilgiler!B19 -> 0 | C42: =Bilgiler!C19 -> 0
A43: Yönetim Kuruluna Verilecek Temettü | B43: =Bilgiler!B20 -> 0 | C43: =Bilgiler!C20 -> 0
A44: Dağıtılacak 2. Temettü Matrahı | B44: =#REF!-(#REF!+B43+B42) ->  | C44: =#REF!-(#REF!+C43+C42) -> 
A45: 2. Yasal Yedek Akçe | B45: =B46*0.1 ->  | C45: =C46*0.1 -> 
A46: 2. Temettü | B46: =IF(#REF!>0,B44/1.1,0) ->  | C46: =IF(#REF!>0,C44/1.1,0) -> 
A47: Yedeklerden Dağıtım | B47: =B61 -> 0 | C47: =C61 -> 0
A48: 2.TERTİP YASAL YEDEKLER | B48: =B47*0.1 -> 0 | C48: =C47*0.1 -> 0
A49: Toplam Dağıtım | B49: =B46+B47 ->  | C49: =C46+C47 -> 
A50: Dağıtılabilir Net Dönem Karı | B50: =#REF! ->  | C50: =#REF! -> 
A51: Ortaklar Haricindeki Dağıtılan Temettü | B51: =B42+B43 -> 0 | C51: =C42+C43 -> 0
A52: Ortaklara toplam dağıtılan | B52: =#REF!+#REF! ->  | C52: =#REF!+#REF! -> 
A53: Olağanüstü yedeklere alınacak kısım | B53: =(#REF!-#REF!-#REF!-#REF!-#REF!-#REF!-#REF!) ->  | C53: =(#REF!-#REF!-#REF!-#REF!-#REF!-#REF!-#REF!) -> 
A54: 1.YASAL YEDEK AKÇE | B54: =B37 ->  | C54: =C37 -> 
A55: 1.TEMETTÜ | B55: =B41 -> 0 | C55: =C41 -> 0
A56: 2. TEMETTÜ | B56: =B47+B46 ->  | C56: =C47+C46 -> 
A57: 2.TERTİP YASAL YEDEKLER | B57: =B45+B48 ->  | C57: =C45+C48 -> 
A58: Yedeklerden Dağıtım | B58: =Bilgiler!B21 -> 0 | C58: =Bilgiler!C21 -> 0
A59: İkinci Yasal Yedeklerden Dağıtımın %10'u yasal yedek akçe | B59: =B61*10% -> 0 | C59: =C61*10% -> 0
A60: Ortaklar Haricindeki Dağıtılan Temettü | B60: =#REF!+#REF! ->  | C60: =#REF!+#REF! -> 
A61: 2. Tertip temettü | B61: =IF(B58>0,B58/1.1,0) -> 0 | C61: =IF(C58>0,C58/1.1,0) -> 0
A62: 1 Hisse Bedeli | B62: =Bilgiler!B22 -> 1 | C62: =Bilgiler!C22 -> 1
A63: Hisse Adedi | B63: =IF(ISERROR(B31/B62)=TRUE,0,B31/B62) -> 160000 | C63: =IF(ISERROR(C31/C62)=TRUE,0,C31/C62) -> 160000
A64: Toplam Dağıtılan Kar Payları | B64: =B55+B56 ->  | C64: =C55+C56 -> 
A65: Hisse senedi sahiplerine --- HİSSE BAŞINA KAR | B65: =IF(ISERROR(#REF!/B63)=TRUE,0,#REF!/B63) -> 0 | C65: =IF(ISERROR(#REF!/C63)=TRUE,0,#REF!/C63) -> 0
A66: Hisse senedi başına --------- KAR YÜZDESİ | B66: =IF(ISERROR(B65/B62)=TRUE,0,B65/B62) -> 0 | C66: =IF(ISERROR(C65/C62)=TRUE,0,C65/C62) -> 0
A67: Hisse senedi sahiplarine temettü | B67: =IF(ISERROR(B49/B63)=TRUE,0,B49/B63) -> 0 | C67: =IF(ISERROR(C49/C63)=TRUE,0,C49/C63) -> 0
A68: Hisse senedi sahiplarine temettü yüzdesi | B68: =IF(ISERROR(B67/B62)=TRUE,0,B67/B62) -> 0 | C68: =IF(ISERROR(C67/C62)=TRUE,0,C67/C62) -> 0
A70: YAPILACAK KAYITLAR
A71: 2007 yılı karından | B71: =B72+B73+B74+B75 ->  | C71: =C72+C73+C74+C75 -> 
A72: 1.yasal yedek akçenin ayrılması | B72: =#REF! ->  | C72: =#REF! -> 
A73: 1.temettü | B73: =#REF! ->  | C73: =#REF! -> 
A74: 2.temettü | B74: =#REF! ->  | C74: =#REF! -> 
A75: 2.yasal yedek akçe | B75: =#REF! ->  | C75: =#REF! -> 
A76: Yedeklerden dağıtım | B76: =B77+B78 ->  | C76: =C77+C78 -> 
A77: Ortaklara pay | B77: =#REF! ->  | C77: =#REF! -> 
A78: 2 yasal yedek akçe | B78: =#REF! ->  | C78: =#REF! -> 
A79: Toplam | B79: =B71+B76 ->  | C79: =C71+C76 -> 
A80: mizandaki tutar | B80: eski | C80: eski | G80: AKÇAKALE MAL MÜDÜRLÜĞÜ | H80: Ş.URFA | I80: 63101 | O80: DÜZCE | CU80: 2006-03-31 | CZ80: D.M.S. MAKİNA SAN. VE TİC. A.Ş.
A81: 540 01 | B81: 34937.85 | C81: 34937.85 | G81: AKÇAKENT MAL MÜDÜRLÜĞÜ | H81: KIRŞEHİR | I81: 40105 | O81: DÜZCE | CU81: 2006-06-30 | CZ81: DENİZ PORTFÖY YÖNETİM A.Ş.
A82: 540 99 | B82: 9247.42 | C82: 9247.42 | G82: AKÇAKOCA VERGİ DAİRESİ | H82: DÜZCE | I82: 81261 | O82: EDİRNE | CU82: 2006-09-30 | CZ82: DENİZ TÜREV MENKUL DEĞERLER A.Ş.
A83: 540 | G83: AKDAĞMADENİ MAL MÜDÜRLÜĞÜ | H83: YOZGAT | I83: 66101 | O83: ELAZIĞ
A84: 542 01 | B84: 31969.85 | C84: 31969.85 | G84: AKDENİZ VERGİ DAİRESİ | H84: HATAY | I84: 31281 | O84: ERZİNCAN | CU84: 2008-09-30 | CZ84: GÖKYILDIZ PETROL TURİZM VE İNŞAAT SAN. VE TİC. LTD. ŞTİ.
A85: 542 02 | B85: 187539.59 | C85: 187539.59 | G85: AKHİSAR VERGİ DAİRESİ | H85: MANİSA | I85: 45201 | O85: ERZURUM | CU85: 2008-12-31 | CZ85: GÖKYILDIZ TEKSTİL VE KONFEKSİYON SAN. VE TİC. LTD. ŞTİ.
A86: 542 06 | B86: 23834.73 | C86: 23834.73 | G86: AKINCILAR MAL MÜDÜRLÜĞÜ | H86: SİVAS | I86: 58112 | O86: ESKİŞEHİR | CU86: 2009-03-31 | CZ86: HÜRTEKSTİL SAN. VE TİC. LTD. ŞTİ.
A87: 542 07 | B87: 382475.08 | C87: 382475.08 | G87: AKKIŞLA MAL MÜDÜRLÜĞÜ | H87: KAYSERİ | I87: 38111 | O87: GAZİANTEP | CU87: 2009-06-30 | CZ87: KS FLOK TEKSTİL KİMYA SAN. VE TİC. A.Ş.
A88: 542 | G88: AKKÖY MAL MÜDÜRLÜĞÜ | H88: DENİZLİ | I88: 20115 | O88: GİRESUN | CU88: 2009-09-30 | CZ88: KÜÇÜKÇALIK İNŞAAT TURİZM SAN. VE TİC. A.Ş.
A89: 570 07 | B89: 221098.08 | C89: 221098.08 | G89: AKKUŞ MAL MÜDÜRLÜĞÜ | H89: ORDU | I89: 52101 | O89: GÜMÜŞHANE | CU89: 2009-12-31 | CZ89: KÜÇÜKÇALIK İTHALAT İHRACAT A.Ş.
A90: 570 97 | B90: 6813.14 | C90: 6813.14 | G90: AKÖREN MAL MÜDÜRLÜĞÜ | H90: KONYA | I90: 42118 | O90: HAKKARİ | CU90: 2010-03-31 | CZ90: KÜÇÜKÇALIK MEFRUŞAT TİC. VE SAN. A.Ş.
A91: 570 97 | G91: AKPINAR MAL MÜDÜRLÜĞÜ | H91: KIRŞEHİR | I91: 40104 | O91: HATAY | CU91: 2010-06-30 | CZ91: KÜÇÜKÇALIK TEKSTİL SAN. VE TİC. A.Ş.
G92: AKSARAY VERGİ DAİRESİ | H92: AKSARAY | I92: 68201 | O92: IĞDIR | CU92: 2010-09-30 | CZ92: SİLCOTEX TEKSTİL TİCARET A.Ş.
B93: =SUM(B84:B92) -> 853730.47 | C93: =SUM(C84:C92) -> 853730.47 | G93: AKŞEHİR VERGİ DAİRESİ | H93: KONYA | I93: 42201 | O93: ISPARTA | CU93: 2010-12-31 | CZ93: STARWOOD ORMAN ÜRÜNLERİ SANAYİİ A.Ş.
A95: Kuruma Bağlı İşyerlerinin türü ve sayısı | B95: İşyeri sayısını aşağıda belirtilen şubeler bazında belirtiniz. | C95: =B96+B102+B103+B104+B105+B106 -> 0 | F95: İşyeri Adresleri | G95: AKSEKİ MAL MÜDÜRLÜĞÜ | H95: ANTALYA | I95: 7101 | O95: İÇEL | CU95: 2011-03-31 | CZ95: ŞEKERCİOĞLU KIRTASİYE VE BÜRO MAL. SAN. VE TİC. A.Ş.
A96: Şube | G96: AKSU MAL MÜDÜRLÜĞÜ | H96: ISPARTA | I96: 32110 | O96: İSTANBUL | CU96: 2011-06-30 | CZ96: TEKNİK MALZEME TİC. VE SAN. A.Ş.
A97: Şube | G97: AKSU VERGİ DAİRESİ | H97: KAHRAMANMARAŞ | I97: 46280 | O97: İZMİR
A98: Şube | G98: AKYAKA MAL MÜDÜRLÜĞÜ | H98: KARS | I98: 36115 | O98: KAHRAMANMARAŞ
A99: Şube | G99: AKYAZI VERGİ DAİRESİ | H99: SAKARYA | I99: 54201 | O99: KARABÜK
A100: Depo | G100: AKYURT MAL MÜDÜRLÜĞÜ | H100: ANKARA | I100: 6125 | O100: KARAMAN
A101: Shrow- | G101: ALAADDİN VERGİ DAİRESİ | H101: KONYA | I101: 42254 | O101: KARS
A102: İmalat Yeri | G102: ALACA MAL MÜDÜRLÜĞÜ | H102: ÇORUM | I102: 19101 | O102: KASTAMONU | CU102: 2011-09-30 | CZ102: VESTEL-BİRİM-DATASEL ADİ ORTAKLIĞI
A103: Çıkış Yeri | G103: ALACAKAYA MAL MÜDÜRLÜĞÜ | H103: ELAZIĞ | I103: 23110 | O103: KAYSERİ | CU103: 2011-12-31 | CZ103: VONATEKS DIŞ TİCARET LTD. ŞTİ.
A104: Ajanlık | G104: ALAÇAM MAL MÜDÜRLÜĞÜ | H104: SAMSUN | I104: 55101 | O104: KIRIKKALE | CZ104: ZORLU DOĞALGAZ İTH. İHR. VE TOPTAN TİC. A.Ş.
A105: Satış yeri | G105: ALADAĞ MAL MÜDÜRLÜĞÜ | H105: ADANA | I105: 1114 | O105: KIRKLARELİ
A106: Sair | G106: ALANYA VERGİ DAİRESİ | H106: ANTALYA | I106: 7201 | O106: KIRŞEHİR
A107: TOPLAM SAYI | B107: =C95 -> 0 | G107: ALAPLI MAL MÜDÜRLÜĞÜ | H107: ZONGULDAK | I107: 67110 | O107: KİLİS
A108: Ödenmiş Sermaye Tutarı | B108: 5103000 | G108: ALAŞEHİR VERGİ DAİRESİ | H108: MANİSA | I108: 45202 | O108: KOCAELİ
A109: ORTAKLIK YAPISI | B109: Enson Yapılan Genel Kurulda Hazirun Cetveline göre | C109: Hisse Oranı | D109: Sermaye Tutarı | E109: Hisse adedi | F109: Ortakların Adresleri | G109: ALAYBEY VERGİ DAİRESİ | H109: MANİSA | I109: 45251 | O109: KONYA
A110: KURUMLAR | B110: Dar Mükellefler varsa Temsilcileri için ayrıca bilgi veriniz. !!!!! | G110: ALEMDAR VERGİ DAİRESİ | H110: KOCAELİ | I110: 41253 | O110: KÜTAHYA
A111: I-Tam Mükellef Kurumlar | C111: =+C112+C113+C114 -> 49.964444 | D111: =+D113+D114+D112 -> 2549685.6 | E111: =+E112+E113+E114 -> 254968560 | G111: ALİ FUAT CEBESOY VERGİ DAİRESİ | H111: SAKARYA | I111: 54252 | O111: MALATYA
A112: Ortak | B112: ORHAN HOLDİNG A.Ş | C112: =ROUND((D111/D127*100),6) -> 49.964444 | D112: 2549685.6 | E112: =D112/B128 -> 254968560 | G112: ALİAĞA VERGİ DAİRESİ | H112: İZMİR | I112: 35213 | O112: MANİSA
A113: Ortak | C113: =ROUND((D113/D127*100),6) -> 0 | E113: =D113*B128 -> 0 | G113: ALMUS MAL MÜDÜRLÜĞÜ | H113: TOKAT | I113: 60101 | O113: MARDİN
A114: Ortak | C114: =ROUND((D114/D127*100),6) -> 0 | E114: =D114*B127 -> 0 | G114: ALPU MAL MÜDÜRLÜĞÜ | H114: ESKİŞEHİR | I114: 26107 | O114: MUĞLA
A115: II-Dar Mükellefler | C115: =ROUND((D115/D127*100),6) -> 50 | D115: =+D116+D117 -> 2551500 | E115: =+E116+E117 -> 255150000 | G115: ALTINEKİN MAL MÜDÜRLÜĞÜ | H115: KONYA | I115: 42119 | O115: MUŞ
A116: Ortak | B116: FAURECIA INVESTMENTS | C116: =ROUND((D116/D127*100),6) -> 50 | D116: 2551500 | E116: =D116/B128 -> 255150000 | G116: ALTINOVA MAL MÜDÜRLÜĞÜ | H116: YALOVA | I116: 77101 | O116: NEVŞEHİR
A117: Ortak | C117: =ROUND((D117/D127*100),6) -> 0 | E117: =D117/B128 -> 0 | G117: ALTINÖZÜ MAL MÜDÜRLÜĞÜ | H117: HATAY | I117: 31101 | O117: NİĞDE
A118: Varsa Daimi temsilcilerini yazınız..> | B118: YOK | C118: =ROUND((D118/D128*100),6) -> 0 | G118: ALTINTAŞ MAL MÜDÜRLÜĞÜ | H118: KÜTAHYA | I118: 43101 | O118: ORDU
A119: III-Gerçek Kişiler | C119: =ROUND((D119/D127*100),6) -> 0.035556 | D119: =D120+D121+D122+D123+D124+D125+D126 -> 1814.4 | E119: =E120+E121+E122+E123+E124+E125+E126 -> 181440 | G119: ALTINYAYLA MAL MÜDÜRLÜĞÜ | H119: BURDUR | I119: 15108 | O119: OSMANİYE
A120: Yönetim Kurulu Başkanı | B120: İBRAHİM ORHAN | C120: =ROUND((D120/D127*100),6) -> 0.008889 | D120: 453.6 | E120: =D120/B128 -> 45360 | G120: ALTINYAYLA MAL MÜDÜRLÜĞÜ | H120: SİVAS | I120: 58113 | O120: RİZE
A121: Yönetim K. Baş Vekili | B121: H.MURAT ORHAN | C121: =ROUND((D121/D127*100),6) -> 0.008889 | D121: 453.6 | E121: =D121/B128 -> 45360 | G121: ALTUNHİSAR MAL MÜDÜRLÜĞÜ | H121: NİĞDE | I121: 51106 | O121: SAKARYA
A122: Yönetim Kurulu Üyesi | C122: =ROUND((D122/D127*100),6) -> 0 | E122: =D122/B128 -> 0 | G122: ALUCRA MAL MÜDÜRLÜĞÜ | H122: GİRESUN | I122: 28101 | O122: SAMSUN
A123: Ortak | B123: NECLA ORHAN | C123: =ROUND((D123/D127*100),6) -> 0.008889 | D123: 453.6 | E123: =D123/B128 -> 45360 | G123: AMASRA MAL MÜDÜRLÜĞÜ | H123: BARTIN | I123: 74101 | O123: SİİRT
A124: Ortak | B124: AYŞEGÜL DONAT | C124: =ROUND((D124/D127*100),6) -> 0.008889 | D124: 453.6 | E124: =D124/B128 -> 45360 | G124: AMASYA VERGİ DAİRESİ | H124: AMASYA | I124: 5260 | O124: SİNOP
A125: Ortak | C125: =ROUND((D125/D127*100),6) -> 0 | E125: =D125/B128 -> 0 | G125: ANADOLU KURUMLAR VERGİ DAİRESİ BAŞKANLIĞI | H125: İSTANBUL | I125: 34244 | O125: SİVAS
A126: Ortak | C126: =ROUND((D126/D127*100),6) -> 0 | E126: =D126/B128 -> 0 | G126: ANAMUR VERGİ DAİRESİ | H126: MERSİN | I126: 33203 | O126: ŞANLIURFA
A127: TOPLAM | C127: =+C111+C115+C119 -> 100 | D127: =D111+D115+D119 -> 5103000 | E127: =+E111+E115+E119 -> 510300000 | G127: ANDIRIN MAL MÜDÜRLÜĞÜ | H127: K.MARAŞ | I127: 46102 | O127: ŞIRNAK
A128: 1adet hissenin tutarı | B128: 0.01 | D128: =D127/B128 -> 510300000 | E128: =E127-D128 -> 0 | G128: ANTALYA KURUMLAR VERGİ DAİRESİ BAŞKANLIĞI | H128: ANTALYA | I128: 7255 | O128: TEKİRDAĞ
A129: İMTİYAZLI HİSSE SENEDİ VARMI | G129: ARABAN MAL MÜDÜRLÜĞÜ | H129: GAZİANTEP | I129: 27101 | O129: TOKAT
A130: YÖNETİM KURULU VE DENETÇİLERİN ÜCRETLERİYLE İLGİLİ GENEL KURUL KARARIN TARİHİ | C130: =IF(B108=D127,"","SERMAYE TUTARI YANLIŞ TEKRAR BAKINIZ.") ->  | G130: ARAÇ MAL MÜDÜRLÜĞÜ | H130: KASTAMONU | I130: 37101 | O130: TRABZON
A131: GENEL KURULDA ALINAN KARARA GÖRE Net,/Brüt Olarak ÖDENECEK AYLIK ÜCRETLER | G131: ARAKLI MAL MÜDÜRLÜĞÜ | H131: TRABZON | I131: 61102 | O131: TUNCELİ
A132: YÖNETİM KURULU BAŞKANINA | G132: ARALIK MAL MÜDÜRLÜĞÜ | H132: IĞDIR | I132: 76101 | O132: UŞAK
A133: YÖNETİM KURULU BAŞKAN YRD | G133: ARAPKİR MAL MÜDÜRLÜĞÜ | H133: MALATYA | I133: 44102 | O133: VAN
A134: ÜYE-ORTAK | G134: ARDA VERGİ DAİRESİ | H134: EDİRNE | I134: 22201 | O134: YALOVA
A135: ÜYE-ORTAK | G135: ARDAHAN VERGİ DAİRESİ | H135: ARDAHAN | I135: 75201 | O135: YOZGAT
A136: ÜYE-ORTAK | G136: ARDANUÇ MAL MÜDÜRLÜĞÜ | H136: ARTVİN | I136: 8101 | O136: ZONGULDAK
A137: ÜYE-ORTAK | G137: ARDEŞEN VERGİ DAİRESİ | H137: RİZE | I137: 53263
A138: ÜYE-ORTAK | G138: ARGUVAN MAL MÜDÜRLÜĞÜ | H138: MALATYA | I138: 44103
A139: ÜYE-ŞİRKET TEMSİLCİSİ | G139: ARHAVİ MAL MÜDÜRLÜĞÜ | H139: ARTVİN | I139: 8102
A140: DENETÇİLERİN ADI VE SOYADI | B140: DENETÇİLERE VERİLECEK Net/ Brüt AYLIK ÜCRETLER | G140: ARICAK MAL MÜDÜRLÜĞÜ | H140: ELAZIĞ | I140: 23108
G141: ARMUTLU MAL MÜDÜRLÜĞÜ | H141: YALOVA | I141: 77102
G142: ARPAÇAY MAL MÜDÜRLÜĞÜ | H142: KARS | I142: 36103
G143: ARSİN MAL MÜDÜRLÜĞÜ | H143: TRABZON | I143: 61103
G144: ARTOVA MAL MÜDÜRLÜĞÜ | H144: TOKAT | I144: 60102
A145: Bugüne kadar ayrılan 1.tertip Yedek akçe | G145: ARTVİN VERGİ DAİRESİ | H145: ARTVİN | I145: 8260
A146: Ayrılması gereken 1. tertip yedek Akçe | B146: =(B108*20/100)-B145 -> 1020600 | G146: ASARCIK MAL MÜDÜRLÜĞÜ | H146: SAMSUN | I146: 55109
A147: DAĞITILACAK brüt TEMETTÜ TUTARI | G147: ASIM GÜNDÜZ VERGİ DAİRESİ | H147: HATAY | I147: 31290
A148: Bu yılın karından dağıtılcak Tutar | G148: AŞKALE MAL MÜDÜRLÜĞÜ | H148: ERZURUM | I148: 25101
A149: Yedekler dağıtılacak Tutar | G149: ASLANAPA MAL MÜDÜRLÜĞÜ | H149: KÜTAHYA | I149: 43107
A150: ORTAKLIKLARA DAĞITILACAK TOPLAM KAR | B150: 0 | G150: ASLANBEY VERGİ DAİRESİ | H150: KAHRAMANMARAŞ | I150: 46201
A151: PERSONELE TEMETTÜ % VEYA TUTAR | G151: ATABEY MAL MÜDÜRLÜĞÜ | H151: ISPARTA | I151: 32101
A152: YÖN.KURULUNA TEMETTÜ % VEYA TUTAR | G152: ATIŞALANI VERGİ DAİRESİ | H152: İSTANBUL | I152: 34291
A153: STATÜ YEDEKLERİ % VEYA TUTAR | G153: ATKARACALAR MAL MÜDÜRLÜĞÜ | H153: ÇANKIRI | I153: 18110
A154: DİĞER YEDEKLER | G154: AVANOS MAL MÜDÜRLÜĞÜ | H154: NEVŞEHİR | I154: 50101
A155: ÖZEL FONLAR | G155: AVCILAR VERGİ DAİRESİ | H155: İSTANBUL | I155: 34294
A156: Yönetim kurulu başkan ve üyeleri ile genel müdür, genel koordinatör, genel müdür yardımcılarına cari dönemde ödenen ücret ve menfaatlerin toplam tutarı | G156: AYANCIK MAL MÜDÜRLÜĞÜ | H156: SİNOP | I156: 57101
A157: ÖNCEKİ DÖNEM | G157: AYAŞ MAL MÜDÜRLÜĞÜ | H157: ANKARA | I157: 6102
A158: Ödenen Gecici Vergi tutarı | G158: AYBASTI MAL MÜDÜRLÜĞÜ | H158: ORDU | I158: 52102
A159: Hesaplanan Vergi Karşılığı | G159: AYDINCIK MAL MÜDÜRLÜĞÜ | H159: İÇEL | I159: 33107
A160: İade edilecek tutar | G160: AYDINCIK MAL MÜDÜRLÜĞÜ | H160: YOZGAT | I160: 66109
G161: AYDINTEPE MAL MÜDÜRLÜĞÜ | H161: BAYBURT | I161: 69101
A162: CARİ DÖNEM | G162: AYRANCI MAL MÜDÜRLÜĞÜ | H162: KARAMAN | I162: 70101
A163: Ödenen Gecici Vergi tutarı | G163: AYVACIK MAL MÜDÜRLÜĞÜ | H163: ÇANAKKALE | I163: 17101
A164: Hesaplanan Vergi Karşılığı | G164: AYVACIK MAL MÜDÜRLÜĞÜ | H164: SAMSUN | I164: 55113
A165: İade edilecek tutar | G165: AYVALIK VERGİ DAİRESİ | H165: BALIKESİR | I165: 10260
G166: AZDAVAY MAL MÜDÜRLÜĞÜ | H166: KASTAMONU | I166: 37102
A167: YARI MAMUL KULLANIMI | B167: =B168-B169 -> 0 | G167: AZİZİYE VERGİ DAİRESİ | H167: ERZURUM | I167: 25251
A168: Dönem Başı Stok Tutarı(151 Hesap ) | G168: BABADAĞ MAL MÜDÜRLÜĞÜ | H168: DENİZLİ | I168: 20111
A169: Dönem Sonu Stok Tutarı (151 hesap) | G169: BABAESKİ VERGİ DAİRESİ | H169: KIRKLARELİ | I169: 39262
A170: MAMUL STOKLARINDA DEĞİŞİM | B170: =B171-B172 -> 0 | G170: BAFRA VERGİ DAİRESİ | H170: SAMSUN | I170: 55202
A171: Dönem Başı Stok Tutarı (152 Hesap) | G171: BAHÇE MAL MÜDÜRLÜĞÜ | H171: OSMANIYE | I171: 80101
A172: Dönem Sonu Stok Tutarı (152 Hesap) | G172: BAHÇESARAY MAL MÜDÜRLÜĞÜ | H172: VAN | I172: 65108
A173: TİCARİ FAALİYET | B173: =B174-B175 -> 0 | G173: BAKIRKÖY VERGİ DAİRESİ | H173: İSTANBUL | I173: 34284
A174: Dönem Başı Ticari Mal. Stok Tutarı (153 hesap) | G174: BAKLAN MAL MÜDÜRLÜĞÜ | H174: DENİZLİ | I174: 20116
A175: Dönem İçi Alış Tutarı (153 hesap) | G175: BALA MAL MÜDÜRLÜĞÜ | H175: ANKARA | I175: 6103
A176: Dönem Sonu Ticari Mal Tutarı (153 hesap) | G176: BALÇOVA VERGİ DAİRESİ | H176: İZMİR | I176: 35266
A177: İLK MADDE STOKLARA VERİ. FİNANSMAN GİDERİ | G177: BALIŞEYH MAL MÜDÜRLÜĞÜ | H177: KIRIKKALE | I177: 71105
A178: MAMUL STOKLARA VERİLEN FİNANSMAN GİDERİ | G178: BALYA MAL MÜDÜRLÜĞÜ | H178: BALIKESİR | I178: 10102
A179: YATIRIMLARA VERİLEN FİNANSMAN GİDERİ | C179: 0 | D179: =IF(C180=B177+B178+B179+B180,""," YANLIŞ TEKRAR BAKINIZ.") -> YANLIŞ TEKRAR BAKINIZ. | G179: BANAZ VERGİ DAİRESİ | H179: UŞAK | I179: 64261
A180: DOĞRUDAN GİDER YAZILAN /GELİR TABLOSUNA İNTİKAL ETTİRİLEN TUTAR | E180: =IF(E128=0,"","HİSSE ADETLERİ YANLIŞ TEKRAR BAKINIZ.") ->  | G180: BANDIRMA VERGİ DAİRESİ | H180: BALIKESİR | I180: 10261
G181: BARTIN VERGİ DAİRESİ | H181: BARTIN | I181: 74260
G182: BAŞÇİFTLİK MAL MÜDÜRLÜĞÜ | H182: TOKAT | I182: 60110
G183: BAŞKALE MAL MÜDÜRLÜĞÜ | H183: VAN | I183: 65101
G184: BAŞKENT VERGİ DAİRESİ | H184: ANKARA | I184: 6276
G185: BASKİL MAL MÜDÜRLÜĞÜ | H185: ELAZIĞ | I185: 23102
G186: BAŞMAKÇI MAL MÜDÜRLÜĞÜ | H186: AFYON | I186: 3111
G187: BASMANE VERGİ DAİRESİ | H187: İZMİR | I187: 35255
G188: BAŞYAYLA MAL MÜDÜRLÜĞÜ | H188: KARAMAN | I188: 70104
G189: BATMAN VERGİ DAİRESİ | H189: BATMAN | I189: 72260
G190: BATTALGAZİ MAL MÜDÜRLÜĞÜ | H190: MALATYA | I190: 44109
G191: BATTALGAZİ VERGİ DAİRESİ | H191: ESKİŞEHİR | I191: 26254
G192: BAYAT MAL MÜDÜRLÜĞÜ | H192: AFYON | I192: 3112
G193: BAYAT MAL MÜDÜRLÜĞÜ | H193: ÇORUM | I193: 19102
G194: BAYBURT VERGİ DAİRESİ | H194: BAYBURT | I194: 69201
G195: BAYINDIR VERGİ DAİRESİ | H195: İZMİR | I195: 35201
G196: BAYKAN MAL MÜDÜRLÜĞÜ | H196: SİİRT | I196: 56102
G197: BAYRAMİÇ MAL MÜDÜRLÜĞÜ | H197: ÇANAKKALE | I197: 17102
G198: BAYRAMÖREN MAL MÜDÜRLÜĞÜ | H198: ÇANKIRI | I198: 18112
G199: BAYRAMPAŞA VERGİ DAİRESİ | H199: İSTANBUL | I199: 34264
G200: BEKİLLİ MAL MÜDÜRLÜĞÜ | H200: DENİZLİ | I200: 20112
G201: BELEN MAL MÜDÜRLÜĞÜ | H201: HATAY | I201: 31110
G202: BELKAHVE VERGİ DAİRESİ | H202: İZMİR | I202: 35254
... 888 more rows

Sheet ÖncekiDönemMizan (hidden)
A1: =COUNTA(A3:A65536) -> 0 | B1: Önceki dönem mizanındaki verileri aşağıdaki sütunlar ile eşleşecek şekilde ekleyiniz.
A2: HESAP KODU | G2: BORÇ BAKİYESİ | H2: ALACAK BAKİYESİ

Sheet CariDönemMizan (hidden)
A1: =COUNTA(A3:A65536) -> 0 | B1: Cari dönem mizanındaki verileri aşağıdaki sütunlar ile eşleşecek şekilde ekleyiniz.
A2: HESAP KODU | G2: BORÇ BAKİYESİ | H2: ALACAK BAKİYESİ

Sheet GELİR TAB (hidden)
A1: CariDönemMizan | C1: =Bilgiler!B1 -> 0
A2: ÖncekiDönemMizan | C2: AYRINTILI GELİR TABLOLARI
C3: ="( " &Bilgiler!B26 & " )" -> ( TL )
D5: Önceki Dönem | F5: Cari Dönem
D6: =Bilgiler!B11 -> 31.12.2012 | F6: =Bilgiler!B12 -> 31.12.2013
B7: * | C7: A-BRÜT SATIŞLAR | E7: =SUM(D8:D10) -> 12325328.71 | G7: =SUM(F8:F10) -> 12499742.37
A8: 600 | B8: 8 | C8: 1-Yurtiçi Satışlar | D8: 12283581.89 | F8: 12301064.08
A9: 601 | B9: 8 | C9: 2-Yurtdışı Satışlar | D9: 0 | F9: 0
A10: 602 | B10: 8 | C10: 3-Diğer Gelirler | D10: 41746.82 | F10: 198678.29
B11: * | C11: B-SATIŞ İNDİRİMLERİ(-) | E11: =SUM(D12:D14) -> 338.98 | G11: =SUM(F12:F14) -> 16996.02
A12: 610 | B12: 7 | C12: 1-Satıştan İadeler(-) | D12: 0 | F12: 0
A13: 611 | B13: 7 | C13: 2-Satış Iskontoları(-) | D13: 338.98 | F13: 16996.02
A14: 612 | B14: 7 | C14: 3-Diğer İndirimler(-) | D14: 0 | F14: 0
B15: * | C15: C-NET SATIŞLAR | E15: =E7-E11 -> 12324989.73 | G15: =G7-G11 -> 12482746.35
B16: * | C16: D-SATIŞLARIN MALİYETİ(-) | E16: =D17+D18+D19+D20 -> 8727159.59 | G16: =F17+F18+F19+F20 -> 10080462.42
A17: 620 | B17: 7 | C17: 1-Satılan Mamuller Maliyeti(-) | D17: 0 | F17: 0
A18: 621 | B18: 7 | C18: 2-Satılan Ticari Mallar Maliyeti(-) | D18: 0 | F18: 0
A19: 622 | B19: 7 | C19: 3-Satılan Hizmet Maliyeti(-) | D19: =IF(D62=0,D67-D68,D62) -> 8725040.95 | F19: =IF(F62=0,F67-F68,F62) -> 10080462.42
A20: 623 | B20: 7 | C20: 4-Diğer Satışların Maliyeti(-) | D20: 2118.64 | F20: 0
B21: * | C21: BRÜT SATIŞ KÂRI VEYA ZARARI | E21: =E15-E16 -> 3597830.14 | G21: =G15-G16 -> 2402283.93
B22: * | C22: E-FAALİYET GİDERLERİ(-) | E22: =SUM(D23:D25) -> 313143.59 | G22: =SUM(F23:F25) -> 256369.32
A23: 630 | B23: 7 | C23: 1-Araştırma ve Geliştirme Giderleri(-) | D23: =IF(D64=0,D69-D70,D64) -> 0 | F23: =IF(F64=0,F69-F70,F64) -> 0
A24: 631 | B24: 7 | C24: 2-Pazarlama, Satış ve Dağıtım Giderleri(-) | D24: =IF(D65=0,D71-D72,D65) -> 8369.8 | F24: =IF(F65=0,F71-F72,F65) -> 0
A25: 632 | B25: 7 | C25: 3-Genel Yönetim Giderleri(-) | D25: =IF(D66=0,D73-D74,D66) -> 304773.79 | F25: =IF(F66=0,F73-F74,F66) -> 256369.32
B26: * | C26: FAALİYET KÂRI VEYA ZARARI | E26: =E21-E22 -> 3284686.55 | G26: =G21-G22 -> 2145914.61
B27: * | C27: F-DİĞER FAALİYETLERDEN OLAĞAN GELİR VE KÂRLAR | E27: =SUM(D28:D37) -> 1199744.92 | G27: =SUM(F28:F37) -> 699370.81
A28: 640 | B28: 8 | C28: 1-İştiraklerden Temettü Gelirleri | D28: 0 | F28: 0
A29: 641 | B29: 8 | C29: 2-Bağlı Ortaklıklardan Temettü Gelirleri | D29: 0 | F29: 0
A30: 642 | B30: 8 | C30: 3-Faiz Gelirleri | D30: 1170078.99 | F30: 699290.32
A31: 643 | B31: 8 | C31: 4-Komisyon Gelirleri | D31: 0 | F31: 0
A32: 644 | B32: 8 | C32: 5-Konusu Kalmayan Karşılıklar | D32: 0 | F32: 0
A33: 645 | B33: 8 | C33: 6-Menkul Kıymet Satış Kârları | D33: 4164.27 | F33: 80.49
A34: 646 | B34: 8 | C34: 7-Kambiyo Kârları | D34: 25501.66 | F34: 0
A35: 647 | B35: 8 | C35: 8-Reeskont Faiz Gelirleri | D35: 0 | F35: 0
A36: 648 | B36: 8 | C36: 9-Enflasyon Düzeltmesi Kârları | D36: 0 | F36: 0
A37: 649 | B37: 8 | C37: 10-Diğer Olağan Gelir ve Kârlar | D37: 0 | F37: 0
B38: * | C38: G-DİĞER FAALİYETLERDEN OLAĞAN GİDER VE ZARARLAR(-) | E38: =SUM(D39:D45) -> 8554.34 | G38: =SUM(F39:F45) -> 1183.92
A39: 653 | B39: 7 | C39: 1-Komisyon Giderleri | D39: 0 | F39: 0
A40: 654 | B40: 7 | C40: 2-Karşılık Giderleri | D40: 0 | F40: 0
A41: 655 | B41: 7 | C41: 3-Menkul Kıymet Satış Zararları | D41: 0 | F41: 0
A42: 656 | B42: 7 | C42: 4-Kambiyo Zararları | D42: 8554.34 | F42: 1183.92
A43: 657 | B43: 7 | C43: 5-Reeskont Faiz Giderleri | D43: 0 | F43: 0
A44: 658 | B44: 7 | C44: 6-Enflasyon Düzeltmesi Zararları | D44: 0 | F44: 0
A45: 659 | B45: 7 | C45: 7-Diğer Olağan Gider ve Zararlar | D45: 0 | F45: 0
B46: * | C46: H-FİNANSMAN GİDERLERİ(-) | E46: =SUM(D47:D48) -> 0 | G46: =SUM(F47:F48) -> 0
A47: 660 | B47: 7 | C47: 1-Kısa Vadeli Borçlanma Giderleri (-) | D47: 0 | F47: 0
A48: 661 | B48: 7 | C48: 2-Uzun Vadeli Borçlanma Giderleri (-) | D48: 0 | F48: 0
B49: * | C49: OLAĞAN KÂR VEYA ZARAR | E49: =E26+E27-E38-E46 -> 4475877.13 | G49: =G26+G27-G38-G46 -> 2844101.5
B50: * | C50: I-OLAĞANDIŞI GELİR VE KÂRLAR | E50: =SUM(D51:D52) -> 4629061.13 | G50: =SUM(F51:F52) -> 381670.04
A51: 671 | B51: 8 | C51: 1-Önceki Dönem Gelir ve Kârları | D51: 0 | F51: 0
A52: 679 | B52: 8 | C52: 2-Diğer Olağandışı Gelir ve Kârlar | D52: 4629061.13 | F52: 381670.04
B53: * | C53: J-OLAĞANDIŞI GİDER VE ZARARLAR(-) | E53: =SUM(D54:D56) -> 349212.18 | G53: =SUM(F54:F56) -> 149805.08
A54: 680 | B54: 7 | C54: 1-Çalışmayan Kısım Gider ve Zararları(-) | D54: 0 | F54: 0
A55: 681 | B55: 7 | C55: 2-Önceki Dönem Gider ve Zararları(-) | D55: 0 | F55: 0
A56: 689 | B56: 7 | C56: 3-Diğer Olağandışı Gider ve Zararlar(-) | D56: 349212.18 | F56: 149805.08
B57: * | C57: DÖNEM KÂRI VEYA ZARARI | E57: =E49+E50-E53 -> 8755726.08 | G57: =G49+G50-G53 -> 3075966.46
B58: * | C58: K-DÖNEM KÂRI VERGİ VE DİĞER YASAL YÜKÜMLÜLÜK KARŞILIKLARI(-) | E58: =Bilgiler!B16 -> 0 | G58: =Bilgiler!C16 -> 0
B59: * | C59: DÖNEM NET KÂRI VEYA ZARARI | E59: =E57-E58 -> 8755726.08 | G59: =G57-G58 -> 3075966.46
A60: 620 | B60: 7 | C60: Satılan Mamuller Maliyeti(-) | D60: 0 | F60: 0
A61: 621 | B61: 7 | C61: Satılan Ticari Mallar Maliyeti(-) | D61: 0 | F61: 0
A62: 622 | B62: 7 | C62: Satılan Hizmet Maliyeti(-) | D62: 8725040.95 | F62: 10080462.42
A63: 623 | B63: 7 | C63: Diğer Satışların Maliyeti(-) | D63: 2118.64 | F63: 0
A64: 630 | B64: 7 | C64: Araştırma ve Geliştirme Giderleri(-) | D64: 0 | F64: 0
A65: 631 | B65: 7 | C65: Pazarlama, Satış ve Dağıtım Giderleri(-) | D65: 8369.8 | F65: 0
A66: 632 | B66: 7 | C66: Genel Yönetim Giderleri(-) | D66: 304773.79 | F66: 256369.32
A67: 740 | B67: 7 | C67: Satılan Hizmet Maliyeti | D67: 0 | F67: 0
A68: 741 | B68: 8 | C68: Satılan Hizmet Maliyeti Yansıtma | D68: 0 | F68: 0
A69: 750 | B69: 7 | C69: Araştırma ve Geliştirme Giderleri | D69: 0 | F69: 0
A70: 751 | B70: 8 | C70: Araştırma ve Geliştirme Giderleri Yansıtma | D70: 0 | F70: 0
A71: 760 | B71: 7 | C71: Pazarlama, Satış ve Dağıtım Giderleri | D71: 0 | F71: 0
A72: 761 | B72: 8 | C72: Pazarlama, Satış ve Dağıtım Giderleri Yansıtma | D72: 0 | F72: 0
A73: 770 | B73: 7 | C73: Genel Yönetim Giderleri | D73: 0 | F73: 0
A74: 771 | B74: 8 | C74: Genel Yönetim Giderleri Yansıtma | D74: 0 | F74: 0

Sheet e-gt (hidden)
A1: BRÜT SATIŞLAR | E1: BRÜT SATIŞLAR
A2: Yurtiçi Satışlar | B2: =IF('GELİR TAB'!D8=0,"",'GELİR TAB'!D8) -> 12283581.89 | C2: =IF('GELİR TAB'!F8=0,"",'GELİR TAB'!F8) -> 12301064.08 | E2: Yurtiçi Satışlar | F2: =IF('GELİR TAB'!D8=0,"",'GELİR TAB'!D8) -> 12283581.89
A3: Yurtdışı Satışlar | B3: =IF('GELİR TAB'!D9=0,"",'GELİR TAB'!D9) ->  | C3: =IF('GELİR TAB'!F9=0,"",'GELİR TAB'!F9) ->  | E3: Yurtdışı Satışlar | F3: =IF('GELİR TAB'!D9=0,"",'GELİR TAB'!D9) -> 
A4: Diğer Gelirler | B4: =IF('GELİR TAB'!D10=0,"",'GELİR TAB'!D10) -> 41746.82 | C4: =IF('GELİR TAB'!F10=0,"",'GELİR TAB'!F10) -> 198678.29 | E4: Diğer Gelirler | F4: =IF('GELİR TAB'!D10=0,"",'GELİR TAB'!D10) -> 41746.82
A5: SATIŞ İNDİRİMLERİ (-) | B5: =IF('GELİR TAB'!D11=0,"",'GELİR TAB'!D11) ->  | C5: =IF('GELİR TAB'!F11=0,"",'GELİR TAB'!F11) ->  | E5: SATIŞ İNDİRİMLERİ (-) | F5: =IF('GELİR TAB'!D11=0,"",'GELİR TAB'!D11) -> 
A6: Satış İadeleri (-) | B6: =IF('GELİR TAB'!D12=0,"",'GELİR TAB'!D12) ->  | C6: =IF('GELİR TAB'!F12=0,"",'GELİR TAB'!F12) ->  | E6: Satış İadeleri (-) | F6: =IF('GELİR TAB'!D12=0,"",'GELİR TAB'!D12) -> 
A7: Satış Iskontoları (-) | B7: =IF('GELİR TAB'!D13=0,"",'GELİR TAB'!D13) -> 338.98 | C7: =IF('GELİR TAB'!F13=0,"",'GELİR TAB'!F13) -> 16996.02 | E7: Satış Iskontoları (-) | F7: =IF('GELİR TAB'!D13=0,"",'GELİR TAB'!D13) -> 338.98
A8: Diğer İndirimler (-) | B8: =IF('GELİR TAB'!D14=0,"",'GELİR TAB'!D14) ->  | C8: =IF('GELİR TAB'!F14=0,"",'GELİR TAB'!F14) ->  | E8: Diğer İndirimler (-) | F8: =IF('GELİR TAB'!D14=0,"",'GELİR TAB'!D14) -> 
A9: NET SATIŞLAR | E9: NET SATIŞLAR
A10: SATIŞLARIN MALİYETİ (-) | E10: SATIŞLARIN MALİYETİ (-)
A11: Satılan Mamuller Maliyeti (-) | B11: =IF('GELİR TAB'!D17=0,"",'GELİR TAB'!D17) ->  | C11: =IF('GELİR TAB'!F17=0,"",'GELİR TAB'!F17) ->  | E11: Satılan Mamuller Maliyeti (-) | F11: =IF('GELİR TAB'!D17=0,"",'GELİR TAB'!D17) -> 
A12: Satılan Ticari Mallar Maliyeti (-) | B12: =IF('GELİR TAB'!D18=0,"",'GELİR TAB'!D18) ->  | C12: =IF('GELİR TAB'!F18=0,"",'GELİR TAB'!F18) ->  | E12: Satılan Ticari Mallar Maliyeti (-) | F12: =IF('GELİR TAB'!D18=0,"",'GELİR TAB'!D18) -> 
A13: Satılan Hizmet Maliyeti (-) | B13: =IF('GELİR TAB'!D19=0,"",'GELİR TAB'!D19) -> 8725040.95 | C13: =IF('GELİR TAB'!F19=0,"",'GELİR TAB'!F19) -> 10080462.42 | E13: Satılan Hizmet Maliyeti (-) | F13: =IF('GELİR TAB'!D19=0,"",'GELİR TAB'!D19) -> 8725040.95
A14: Diğer Satışların Maliyeti (-) | B14: =IF('GELİR TAB'!D20=0,"",'GELİR TAB'!D20) -> 2118.64 | C14: =IF('GELİR TAB'!F20=0,"",'GELİR TAB'!F20) ->  | E14: Diğer Satışların Maliyeti (-) | F14: =IF('GELİR TAB'!D20=0,"",'GELİR TAB'!D20) -> 2118.64
A15: BRÜT SATIŞ KARI VEYA ZARARI | E15: BRÜT SATIŞ KARI VEYA ZARARI
A16: FAALİYET GİDERLERİ (-) | E16: FAALİYET GİDERLERİ (-)
A17: Araştırma ve Geliştirme Giderleri (-) | B17: =IF('GELİR TAB'!D23=0,"",'GELİR TAB'!D23) ->  | C17: =IF('GELİR TAB'!F23=0,"",'GELİR TAB'!F23) ->  | E17: Araştırma ve Geliştirme Giderleri (-) | F17: =IF('GELİR TAB'!D23=0,"",'GELİR TAB'!D23) -> 
A18: Pazarlama, Satış ve Dağıtım Giderleri (-) | B18: =IF('GELİR TAB'!D24=0,"",'GELİR TAB'!D24) -> 8369.8 | C18: =IF('GELİR TAB'!F24=0,"",'GELİR TAB'!F24) ->  | E18: Pazarlama, Satış ve Dağıtım Giderleri (-) | F18: =IF('GELİR TAB'!D24=0,"",'GELİR TAB'!D24) -> 8369.8
A19: Genel Yönetim Giderleri (-) | B19: =IF('GELİR TAB'!D25=0,"",'GELİR TAB'!D25) -> 304773.79 | C19: =IF('GELİR TAB'!F25=0,"",'GELİR TAB'!F25) -> 256369.32 | E19: Genel Yönetim Giderleri (-) | F19: =IF('GELİR TAB'!D25=0,"",'GELİR TAB'!D25) -> 304773.79
A20: FAALİYET KARI VEYA ZARARI | E20: FAALİYET KARI VEYA ZARARI
A21: DİĞER FAALİYETLERDEN OLAĞAN GELİR VE KARLAR | E21: DİĞER FAALİYETLERDEN OLAĞAN GELİR VE KARLAR
A22: İştiraklerden Temettü Gelirleri | B22: =IF('GELİR TAB'!D28=0,"",'GELİR TAB'!D28) ->  | C22: =IF('GELİR TAB'!F28=0,"",'GELİR TAB'!F28) ->  | E22: İştiraklerden Temettü Gelirleri | F22: =IF('GELİR TAB'!D28=0,"",'GELİR TAB'!D28) -> 
A23: Bağlı Ortaklıklardan Temettü Geliri | B23: =IF('GELİR TAB'!D29=0,"",'GELİR TAB'!D29) ->  | C23: =IF('GELİR TAB'!F29=0,"",'GELİR TAB'!F29) ->  | E23: Bağlı Ortaklıklardan Temettü Geliri | F23: =IF('GELİR TAB'!D29=0,"",'GELİR TAB'!D29) -> 
A24: Faiz Geliri | B24: =IF('GELİR TAB'!D30=0,"",'GELİR TAB'!D30) -> 1170078.99 | C24: =IF('GELİR TAB'!F30=0,"",'GELİR TAB'!F30) -> 699290.32 | E24: Faiz Geliri | F24: =IF('GELİR TAB'!D30=0,"",'GELİR TAB'!D30) -> 1170078.99
A25: Komisyon Gelirleri | B25: =IF('GELİR TAB'!D31=0,"",'GELİR TAB'!D31) ->  | C25: =IF('GELİR TAB'!F31=0,"",'GELİR TAB'!F31) ->  | E25: Komisyon Gelirleri | F25: =IF('GELİR TAB'!D31=0,"",'GELİR TAB'!D31) -> 
A26: Konusu Kalmayan Karşılıklar | B26: =IF('GELİR TAB'!D32=0,"",'GELİR TAB'!D32) ->  | C26: =IF('GELİR TAB'!F32=0,"",'GELİR TAB'!F32) ->  | E26: Konusu Kalmayan Karşılıklar | F26: =IF('GELİR TAB'!D32=0,"",'GELİR TAB'!D32) -> 
A27: Menkul Kıymetler Satış Karları | B27: =IF('GELİR TAB'!D33=0,"",'GELİR TAB'!D33) -> 4164.27 | C27: =IF('GELİR TAB'!F33=0,"",'GELİR TAB'!F33) -> 80.49 | E27: Menkul Kıymetler Satış Karları | F27: =IF('GELİR TAB'!D33=0,"",'GELİR TAB'!D33) -> 4164.27
A28: Kambiyo Karları | B28: =IF('GELİR TAB'!D34=0,"",'GELİR TAB'!D34) -> 25501.66 | C28: =IF('GELİR TAB'!F34=0,"",'GELİR TAB'!F34) ->  | E28: Kambiyo Karları | F28: =IF('GELİR TAB'!D34=0,"",'GELİR TAB'!D34) -> 25501.66
A29: Reeskont Faiz Gelirleri | B29: =IF('GELİR TAB'!D35=0,"",'GELİR TAB'!D35) ->  | C29: =IF('GELİR TAB'!F35=0,"",'GELİR TAB'!F35) ->  | E29: Reeskont Faiz Gelirleri | F29: =IF('GELİR TAB'!D35=0,"",'GELİR TAB'!D35) -> 
A30: Enflasyon Düzeltmesi Karları | B30: =IF('GELİR TAB'!D36=0,"",'GELİR TAB'!D36) ->  | C30: =IF('GELİR TAB'!F36=0,"",'GELİR TAB'!F36) ->  | E30: Enflasyon Düzeltmesi Karları | F30: =IF('GELİR TAB'!D36=0,"",'GELİR TAB'!D36) -> 
A31: Faaliyetle İlgili Diğer Olağan Gelirler ve Karlar | B31: =IF('GELİR TAB'!D37=0,"",'GELİR TAB'!D37) ->  | C31: =IF('GELİR TAB'!F37=0,"",'GELİR TAB'!F37) ->  | E31: Faaliyetle İlgili Diğer Olağan Gelirler ve Karlar | F31: =IF('GELİR TAB'!D37=0,"",'GELİR TAB'!D37) -> 
A32: DİĞER FAALİYETLERDEN OLAĞAN GİDER VE ZARARLARI (-) | E32: DİĞER FAALİYETLERDEN OLAĞAN GİDER VE ZARARLARI (-)
A33: Komisyon Giderleri (-) | B33: =IF('GELİR TAB'!D39=0,"",'GELİR TAB'!D39) ->  | C33: =IF('GELİR TAB'!F39=0,"",'GELİR TAB'!F39) ->  | E33: Komisyon Giderleri (-) | F33: =IF('GELİR TAB'!D39=0,"",'GELİR TAB'!D39) -> 
A34: Karşılık Giderleri (-) | B34: =IF('GELİR TAB'!D40=0,"",'GELİR TAB'!D40) ->  | C34: =IF('GELİR TAB'!F40=0,"",'GELİR TAB'!F40) ->  | E34: Karşılık Giderleri (-) | F34: =IF('GELİR TAB'!D40=0,"",'GELİR TAB'!D40) -> 
A35: Menkul Kıymet Satış Zararları (-) | B35: =IF('GELİR TAB'!D41=0,"",'GELİR TAB'!D41) ->  | C35: =IF('GELİR TAB'!F41=0,"",'GELİR TAB'!F41) ->  | E35: Menkul Kıymet Satış Zararları (-) | F35: =IF('GELİR TAB'!D41=0,"",'GELİR TAB'!D41) -> 
A36: Kambiyo Zararları (-) | B36: =IF('GELİR TAB'!D42=0,"",'GELİR TAB'!D42) -> 8554.34 | C36: =IF('GELİR TAB'!F42=0,"",'GELİR TAB'!F42) -> 1183.92 | E36: Kambiyo Zararları (-) | F36: =IF('GELİR TAB'!D42=0,"",'GELİR TAB'!D42) -> 8554.34
A37: Reeskont Faiz Giderleri (-) | B37: =IF('GELİR TAB'!D43=0,"",'GELİR TAB'!D43) ->  | C37: =IF('GELİR TAB'!F43=0,"",'GELİR TAB'!F43) ->  | E37: Reeskont Faiz Giderleri (-) | F37: =IF('GELİR TAB'!D43=0,"",'GELİR TAB'!D43) -> 
A38: Enflasyon Düzeltmesi Zararları (-) | B38: =IF('GELİR TAB'!D44=0,"",'GELİR TAB'!D44) ->  | C38: =IF('GELİR TAB'!F44=0,"",'GELİR TAB'!F44) ->  | E38: Enflasyon Düzeltmesi Zararları (-) | F38: =IF('GELİR TAB'!D44=0,"",'GELİR TAB'!D44) -> 
A39: Faaliyetle İlgili Diğer Olağan Gider ve Zararlar (-) | B39: =IF('GELİR TAB'!D45=0,"",'GELİR TAB'!D45) ->  | C39: =IF('GELİR TAB'!F45=0,"",'GELİR TAB'!F45) ->  | E39: Faaliyetle İlgili Diğer Olağan Gider ve Zararlar (-) | F39: =IF('GELİR TAB'!D45=0,"",'GELİR TAB'!D45) -> 
A40: FİNANSMAN GİDERLERİ (-) | E40: FİNANSMAN GİDERLERİ (-)
A41: Kısa Vadeli Borçlanma Giderleri (-) | B41: =IF('GELİR TAB'!D47=0,"",'GELİR TAB'!D47) ->  | C41: =IF('GELİR TAB'!F47=0,"",'GELİR TAB'!F47) ->  | E41: Kısa Vadeli Borçlanma Giderleri (-) | F41: =IF('GELİR TAB'!D47=0,"",'GELİR TAB'!D47) -> 
A42: Uzun Vadeli Borçlanma Giderleri (-) | B42: =IF('GELİR TAB'!D48=0,"",'GELİR TAB'!D48) ->  | C42: =IF('GELİR TAB'!F48=0,"",'GELİR TAB'!F48) ->  | E42: Uzun Vadeli Borçlanma Giderleri (-) | F42: =IF('GELİR TAB'!D48=0,"",'GELİR TAB'!D48) -> 
A43: OLAĞAN KAR VEYA ZARAR | E43: OLAĞAN KAR VEYA ZARAR
A44: OLAĞANDIŞI GELİR VE KARLAR | E44: OLAĞANDIŞI GELİR VE KARLAR
A45: Önceki Dönem Gelir ve Karları | B45: =IF('GELİR TAB'!D51=0,"",'GELİR TAB'!D51) ->  | C45: =IF('GELİR TAB'!F51=0,"",'GELİR TAB'!F51) ->  | E45: Önceki Dönem Gelir ve Karları | F45: =IF('GELİR TAB'!D51=0,"",'GELİR TAB'!D51) -> 
A46: Diğer Olağandışı Gelir ve Karlar | B46: =IF('GELİR TAB'!D52=0,"",'GELİR TAB'!D52) -> 4629061.13 | C46: =IF('GELİR TAB'!F52=0,"",'GELİR TAB'!F52) -> 381670.04 | E46: Diğer Olağandışı Gelir ve Karlar | F46: =IF('GELİR TAB'!D52=0,"",'GELİR TAB'!D52) -> 4629061.13
A47: OLAĞAN DIŞI GİDER VE ZARARLAR (-) | E47: OLAĞAN DIŞI GİDER VE ZARARLAR (-)
A48: Çalışmayan Kısım Gider ve Zararları (-) | B48: =IF('GELİR TAB'!D54=0,"",'GELİR TAB'!D54) ->  | C48: =IF('GELİR TAB'!F54=0,"",'GELİR TAB'!F54) ->  | E48: Çalışmayan Kısım Gider ve Zararları (-) | F48: =IF('GELİR TAB'!D54=0,"",'GELİR TAB'!D54) -> 
A49: Önceki Dönem Gider ve Zararları (-) | B49: =IF('GELİR TAB'!D55=0,"",'GELİR TAB'!D55) ->  | C49: =IF('GELİR TAB'!F55=0,"",'GELİR TAB'!F55) ->  | E49: Önceki Dönem Gider ve Zararları (-) | F49: =IF('GELİR TAB'!D55=0,"",'GELİR TAB'!D55) -> 
A50: Diğer Olağandışı Gider ve Zararlar (-) | B50: =IF('GELİR TAB'!D56=0,"",'GELİR TAB'!D56) -> 349212.18 | C50: =IF('GELİR TAB'!F56=0,"",'GELİR TAB'!F56) -> 149805.08 | E50: Diğer Olağandışı Gider ve Zararlar (-) | F50: =IF('GELİR TAB'!D56=0,"",'GELİR TAB'!D56) -> 349212.18
A51: DÖNEM KARI VEYA ZARARI | E51: DÖNEM KARI VEYA ZARARI
A52: DÖNEM KARI VERGİ VE DİĞER YASAL YÜK. KRŞ. (-) | B52: =IF('GELİR TAB'!D58=0,"",'GELİR TAB'!D58) ->  | C52: =IF('GELİR TAB'!F58=0,"",'GELİR TAB'!F58) ->  | E52: DÖNEM KARI VERGİ VE DİĞER YASAL YÜK. KRŞ. (-) | F52: =IF('GELİR TAB'!D58=0,"",'GELİR TAB'!D58) -> 
A53: DÖNEM NET KARI VEYA ZARARI | E53: DÖNEM NET KARI VEYA ZARARI

Sheet BİLANÇO-A (hidden)
A1: CariDönemMizan | C1: =Bilgiler!B1 -> 0
A2: ÖncekiDönemMizan | C2: AYRINTILI BİLANÇOLARI
C3: ="( " &Bilgiler!B26 & " )" -> ( TL )
C5: AKTİF(VARLIKLAR) | D5: Önceki Dönem | F5: Cari Dönem
D6: =Bilgiler!B11 -> 31.12.2012 | F6: =Bilgiler!B12 -> 31.12.2013
B7: * | C7: DÖNEN VARLIKLAR TOPLAMI | E7: =E60+E57+E46+E38+E29+E20+E14+E8 -> 10074475.38 | G7: =G60+G57+G38+G46+G29+G20+G14+G8 -> 5147147.15
B8: * | C8: A-Hazır Değerler | E8: =SUM(D9:D11)-D12+D13 -> 3479214.67 | G8: =F9+F10+F11-F12+F13 -> 139328.56
A9: 100 | B9: 7 | C9: 1-Kasa | D9: 17443.64 | F9: 44719.35
A10: 101 | B10: 7 | C10: 2-Alınan Çekler | D10: 0 | F10: 0
A11: 102 | B11: 7 | C11: 3-Bankalar | D11: 3461771.03 | F11: 94609.21
A12: 103 | B12: 8 | C12: 4-Verilen Çekler ve Ödeme Emirleri (-) | D12: 0 | F12: 0
A13: 108 | B13: 7 | C13: 5-Diğer Hazır Değerler | D13: 0 | F13: 0
B14: * | C14: B-Menkul Kıymetler | E14: =SUM(D15:D18)-D19 -> 0 | G14: =SUM(F15:F18)-F19 -> 0
A15: 110 | B15: 7 | C15: 1-Hisse Senetleri | D15: 0 | F15: 0
A16: 111 | B16: 7 | C16: 2-Özel Kesim Tahvil, Senet ve Bonoları | D16: 0 | F16: 0
A17: 112 | B17: 7 | C17: 3-Kamu Kesimi Tahvil, Senet ve Bonoları | D17: 0 | F17: 0
A18: 118 | B18: 7 | C18: 4-Diğer Menkul Kıymetler | D18: 0 | F18: 0
A19: 119 | B19: 8 | C19: 5-Menkul Kıymetler Değer Düşüklüğü Karşılığı (-) | D19: 0 | F19: 0
B20: * | C20: C-Ticari Alacaklar | E20: =D21+D22-D23-D24+D25+D26+D27-D28 -> 6269610.07 | G20: =F21+F22-F23-F24+F25+F26+F27-F28 -> 4945965.06
A21: 120 | B21: 7 | C21: 1-Alıcılar | D21: 2693583.5 | F21: 995299.07
A22: 121 | B22: 7 | C22: 2-Alacak Senetleri | D22: 0 | F22: 53236.15
A23: 122 | B23: 8 | C23: 3-Alacak Senetleri Reeskontu (-) | D23: 0 | F23: 0
A24: 124 | B24: 8 | C24: 4-Kazanılmamış Finansal Kiralama Faiz Gelirleri (-) | D24: 0 | F24: 0
A25: 126 | B25: 7 | C25: 5-Verilen Depozito ve Teminatlar | D25: 113.89 | F25: 49
A26: 127 | B26: 7 | C26: 6-Diğer Ticari Alacaklar | D26: 3545912.68 | F26: 3897380.84
A27: 128 | B27: 7 | C27: 7-Şüpheli Ticari Alacaklar | D27: 30000 | F27: 0
A28: 129 | B28: 8 | C28: 8-Şüpheli Ticari Alacaklar Karşılığı (-) | D28: 0 | F28: 0
B29: * | C29: D-Diğer Alacaklar | E29: =D30+D31+D32+D33+D34-D35+D36-D37 -> 0 | G29: =F30+F31+F32+F33+F34-F35+F36-F37 -> 0
A30: 131 | B30: 7 | C30: 1-Ortaklardan Alacaklar | D30: 0 | F30: 0
A31: 132 | B31: 7 | C31: 2-İştiraklerden Alacaklar | D31: 0 | F31: 0
A32: 133 | B32: 7 | C32: 3-Bağlı Ortaklıklardan Alacaklar | D32: 0 | F32: 0
A33: 135 | B33: 7 | C33: 4-Personelden Alacaklar | D33: 0 | F33: 0
A34: 136 | B34: 7 | C34: 5-Diğer Çeşitli Alacaklar | D34: 0 | F34: 0
A35: 137 | B35: 8 | C35: 6-Diğer Alacak Senetleri Reeskontu (-) | D35: 0 | F35: 0
A36: 138 | B36: 7 | C36: 7-Şüpheli Diğer Alacaklar | D36: 0 | F36: 0
A37: 139 | B37: 8 | C37: 8-Şüpheli Diğer Alacaklar Karşılığı (-) | D37: 0 | F37: 0
B38: * | C38: E-Stoklar | E38: =D39+D40+D41+D42+D43-D44+D45 -> 4631.26 | G38: =F39+F40+F41+F42+F43-F44+F45 -> 338.58
A39: 150 | B39: 7 | C39: 1-İlk Madde ve Malzeme | D39: 0 | F39: 0
A40: 151 | B40: 7 | C40: 2-Yarı Mamuller-Üretim | D40: 0 | F40: 0
A41: 152 | B41: 7 | C41: 3-Mamuller | D41: 0 | F41: 0
A42: 153 | B42: 7 | C42: 4-Ticari Mallar | D42: 0 | F42: 0
A43: 157 | B43: 7 | C43: 5-Diğer Stoklar | D43: 4631.26 | F43: 338.58
A44: 158 | B44: 8 | C44: 6-Stok Değer Düşüklüğü Karşılığı (-) | D44: 0 | F44: 0
A45: 159 | B45: 7 | C45: 7-Verilen Sipariş Avansları | D45: 0 | F45: 0
B46: * | C46: F-Yıllara Yaygın İnşaat ve Onarım Maliyetleri | E46: =D47+D55+D56 -> 0 | G46: =F47+F55+F56 -> 0
A47: 170 | B47: 7 | C47: 1-Yıllara Yaygın İnşaat ve Onarım Maliyetleri | D47: 0 | F47: 0
A48: 171 | B48: 7 | C48: 1-Yıllara Yaygın İnşaat ve Onarım Maliyetleri
A49: 172 | B49: 7 | C49: 1-Yıllara Yaygın İnşaat ve Onarım Maliyetleri
A50: 173 | B50: 7 | C50: 1-Yıllara Yaygın İnşaat ve Onarım Maliyetleri
A51: 174 | B51: 7 | C51: 1-Yıllara Yaygın İnşaat ve Onarım Maliyetleri
A52: 175 | B52: 7 | C52: 1-Yıllara Yaygın İnşaat ve Onarım Maliyetleri
A53: 176 | B53: 7 | C53: 1-Yıllara Yaygın İnşaat ve Onarım Maliyetleri
A54: 177 | B54: 7 | C54: 1-Yıllara Yaygın İnşaat ve Onarım Maliyetleri
A55: 178 | B55: 7 | C55: 2-Yıllara Yaygın İnşaat Enflasyon Düzeltme Hesabı | D55: 0 | F55: 0
A56: 179 | B56: 7 | C56: 3-Taşeronlara Verilen Avanslar | D56: 0 | F56: 0
B57: * | C57: G-Gelecek Aylara Ait Giderler ve Gelir Tahakkukları | E57: =SUM(D58:D59) -> 55382.71 | G57: =SUM(F58:F59) -> 37136.34
A58: 180 | B58: 7 | C58: 1-Gelecek Aylara Ait Giderler | D58: 38572.86 | F58: 37136.34
A59: 181 | B59: 7 | C59: 2-Gelir Tahakkukları | D59: 16809.85 | F59: 0
B60: * | C60: H-Diğer Dönen Varlıklar | E60: =SUM(D61:D68)-D69 -> 265636.67 | G60: =SUM(F61:F68)-F69 -> 24378.61
A61: 190 | B61: 7 | C61: 1-Devreden KDV | D61: 0 | F61: 0
A62: 191 | B62: 7 | C62: 2-İndirilecek KDV | D62: 0 | F62: 0
A63: 192 | B63: 7 | C63: 3-Diğer KDV | D63: 0 | F63: 0
A64: 193 | B64: 7 | C64: 4-Peşin Ödenen Vergiler ve Fonlar | D64: 229386.67 | F64: 24378.61
A65: 195 | B65: 7 | C65: 5-İş Avansları | D65: 0 | F65: 0
A66: 196 | B66: 7 | C66: 6-Personel Avansları | D66: 36250 | F66: 0
A67: 197 | B67: 7 | C67: 7-Sayım ve Tesellüm Noksanları | D67: 0 | F67: 0
A68: 198 | B68: 7 | C68: 8-Diğer Çeşitli Dönen Varlıklar | D68: 0 | F68: 0
A69: 199 | B69: 8 | C69: 9-Diğer Dönen Varlıklar Karşılığı (-) | D69: 0 | F69: 0
B70: * | C70: DURAN VARLIKLAR TOPLAMI | E70: =E126+E123+E117+E108+E97+E86+E78+E71 -> 79245.49 | G70: =G126+G123+G117+G108+G97+G86+G78+G71 -> 23494.81
B71: * | C71: A-Ticari Alacaklar | E71: =D72+D73+-D74-D75+D76-D77 -> 0 | G71: =F72+F73+-F74-F75+F76-F77 -> 0
A72: 220 | B72: 7 | C72: 1-Alıcılar | D72: 0 | F72: 0
A73: 221 | B73: 7 | C73: 2-Alacak Senetleri | D73: 0 | F73: 0
A74: 222 | B74: 8 | C74: 3-Alacak Senetleri Reeskontu (-) | D74: 0 | F74: 0
A75: 224 | B75: 8 | C75: 4-Kazanılmamış Finansal Kiralama Faiz Gelirleri (-) | D75: 0 | F75: 0
A76: 226 | B76: 7 | C76: 5-Verilen Depozito ve Teminatlar | D76: 0 | F76: 0
A77: 229 | B77: 8 | C77: 6-Şüpheli Alacaklar Karşılığı (-) | D77: 0 | F77: 0
B78: * | C78: B-Diğer Alacaklar | E78: =D79+D80+D81+D82+D83-D84-D85 -> 0 | G78: =F79+F80+F81+F82+F83-F84-F85 -> 0
A79: 231 | B79: 7 | C79: 1-Ortaklardan Alacaklar | D79: 0 | F79: 0
A80: 232 | B80: 7 | C80: 2-İştiraklerden Alacaklar | D80: 0 | F80: 0
A81: 233 | B81: 7 | C81: 3-Bağlı Ortaklıklardan Alacaklar | D81: 0 | F81: 0
A82: 235 | B82: 7 | C82: 4-Personelden Alacaklar | D82: 0 | F82: 0
A83: 236 | B83: 7 | C83: 5-Diğer Çeşitli Alacaklar | D83: 0 | F83: 0
A84: 237 | B84: 8 | C84: 6-Diğer Alacak Senetleri Reeskontu (-) | D84: 0 | F84: 0
A85: 239 | B85: 8 | C85: 7-Şüpheli Diğer Alacaklar Karşılığı (-) | D85: 0 | F85: 0
B86: * | C86: C-Mali Duran Varlıklar | E86: =D87-D88+D89-D90-D91+D92-D93-D94+D95-D96 -> 0 | G86: =F87-F88+F89-F90-F91+F92-F93-F94+F95-F96 -> 0
A87: 240 | B87: 7 | C87: 1-Bağlı Menkul Kıymetler | D87: 0 | F87: 0
A88: 241 | B88: 8 | C88: 2-Bağlı Menkul Kıymetler Değer Düşüklüğü karşılığı (-) | D88: 0 | F88: 0
A89: 242 | B89: 7 | C89: 3-İştirakler | D89: 0 | F89: 0
A90: 243 | B90: 8 | C90: 4-İştiraklere Sermaye Taahhütleri (-) | D90: 0 | F90: 0
A91: 244 | B91: 8 | C91: 5-İştirakler Sermaye Payları değer Düşüklüğü Karşılığı (-) | D91: 0 | F91: 0
A92: 245 | B92: 7 | C92: 6-Bağlı Ortaklıklar | D92: 0 | F92: 0
A93: 246 | B93: 8 | C93: 7-Bağlı Ortaklıklara Sermaye Taahhütleri (-) | D93: 0 | F93: 0
A94: 247 | B94: 8 | C94: 8-Bağlı Ortaklıklara Sermaye Payları Değ.Düş.Karşılığı (-) | D94: 0 | F94: 0
A95: 248 | B95: 7 | C95: 9-Diğer Mali Duran Varlıklar | D95: 0 | F95: 0
A96: 249 | B96: 8 | C96: 10-Diğer Mali Duran Varlıklar Karşılığı (-) | D96: 0 | F96: 0
B97: * | C97: D-Maddi Duran Varlıklar | E97: =SUM(D98:D104)-D105+D106+D107 -> 75627.14 | G97: =SUM(F98:F104)-F105+F106+F107 -> 20349.07
A98: 250 | B98: 7 | C98: 1-Arazi ve Arsalar | D98: 0 | F98: 0
A99: 251 | B99: 7 | C99: 2-Yer altı ve Yer Üstü Düzenleri | D99: 0 | F99: 0
A100: 252 | B100: 7 | C100: 3-Binalar | D100: 0 | F100: 0
A101: 253 | B101: 7 | C101: 4-Tesis, Makine ve Cihazlar | D101: 0 | F101: 0
A102: 254 | B102: 7 | C102: 5-Taşıtlar | D102: 1217541.88 | F102: 446482.36
A103: 255 | B103: 7 | C103: 6-Demirbaşlar | D103: 374015.85 | F103: 374250.51
A104: 256 | B104: 7 | C104: 7-Diğer Maddi Duran Varlıklar | D104: 0 | F104: 0
A105: 257 | B105: 8 | C105: 8-Birikmiş Amortismanlar (-) | D105: 1515930.59 | F105: 800383.8
A106: 258 | B106: 7 | C106: 9-Yapılmakta Olan Yatırımlar | D106: 0 | F106: 0
A107: 259 | B107: 7 | C107: 10-Verilen Avanslar | D107: 0 | F107: 0
B108: * | C108: E-Maddi Olmayan Duran Varlıklar | E108: =SUM(D109:D114)-D115+D116 -> 1998.03 | G108: =SUM(F109:F114)-F115+F116 -> 1525.42
A109: 260 | B109: 7 | C109: 1-Haklar | D109: 1004.53 | F109: 1004.53
A110: 261 | B110: 7 | C110: 2-Şerefiye | D110: 0 | F110: 0
A111: 262 | B111: 7 | C111: 3-Kuruluş ve Örgütlenme Giderleri | D111: 0 | F111: 0
A112: 263 | B112: 7 | C112: 4-Araştırma ve Geliştirme Giderleri | D112: 0 | F112: 0
A113: 264 | B113: 7 | C113: 5-Özel Maliyetler | D113: 22008804.37 | F113: 0
A114: 267 | B114: 7 | C114: 6-Diğer Maddi Olmayan Duran Varlıklar | D114: 7447.37 | F114: 7447.37
A115: 268 | B115: 8 | C115: 7-Birikmiş Amortismanlar (-) | D115: 22015258.24 | F115: 6926.48
A116: 269 | B116: 7 | C116: 8-Verilen Avanslar | D116: 0 | F116: 0
B117: * | C117: F-Özel Tükenmeye Tabi Varlıklar | E117: =SUM(D118:D120)-D121+D122 -> 0 | G117: =SUM(F118:F120)-F121+F122 -> 0
A118: 271 | B118: 7 | C118: 1-Arama Giderleri | D118: 0 | F118: 0
A119: 272 | B119: 7 | C119: 2-Hazırlık ve Geliştirme Giderleri | D119: 0 | F119: 0
A120: 277 | B120: 7 | C120: 3-Diğer Özel Tükenmeye Tabi Varlıklar | D120: 0 | F120: 0
A121: 278 | B121: 8 | C121: 4-Birikmiş Tükenme Payları (-) | D121: 0 | F121: 0
A122: 279 | B122: 7 | C122: 5-Verilen Avanslar | D122: 0 | F122: 0
B123: * | C123: G-Gelecek Yıllara Ait Giderler ve Gelir Tahakkukları | E123: =SUM(D124:D125) -> 1620.32 | G123: =SUM(F124:F125) -> 1620.32
A124: 280 | B124: 7 | C124: 1-Gelecek Yıllara Ait Giderler | D124: 1620.32 | F124: 1620.32
A125: 281 | B125: 7 | C125: 2-Gelir Tahakkukları | D125: 0 | F125: 0
B126: * | C126: H-Diğer Duran Varlıklar | E126: =SUM(D127:D132)-SUM(D133:D134) -> 0 | G126: =SUM(F127:F132)-SUM(F133:F134) -> 0
A127: 291 | B127: 7 | C127: 1-Gelecek Yıllarda İndirilecek KDV | D127: 0 | F127: 0
A128: 292 | B128: 7 | C128: 2-Diğer KDV | D128: 0 | F128: 0
A129: 293 | B129: 7 | C129: 3-Gelecek Yıllar İhtiyacı Stoklar | D129: 0 | F129: 0
A130: 294 | B130: 7 | C130: 4-Elden Çıkarılacak Stoklar ve Maddi Duran Varlıklar | D130: 0 | F130: 0
A131: 295 | B131: 7 | C131: 5-Peşin Ödenen Vergiler ve Fonlar | D131: 0 | F131: 0
A132: 297 | B132: 7 | C132: 6-Diğer Çeşitli Duran Varlıklar | D132: 0 | F132: 0
A133: 298 | B133: 8 | C133: 7-Stok Değer Düşüklüğü Karşılığı (-) | D133: 0 | F133: 0
A134: 299 | B134: 8 | C134: 8-Birikmiş Amortismanlar (-) | D134: 0 | F134: 0
B135: * | C135: AKTİF (VARLIKLAR) TOPLAMI | E135: =E70+E7 -> 10153720.87 | G135: =ROUND(G70+G7,2) -> 5170641.96
E137: =IF(ROUND('BİLANÇO-A'!E135,2)=ROUND('BİLANÇO-P'!E117,2),"OK", "FARK VAR!") -> OK | G137: =IF(ROUND('BİLANÇO-A'!G135,2)=ROUND('BİLANÇO-P'!G117,2),"OK", "FARK VAR!") -> OK
E138: =ROUND(E135-'BİLANÇO-P'!E117,2) -> 0 | G138: =ROUND(G135-'BİLANÇO-P'!G117,2) -> 0

Sheet Vergi (hidden)
A1: Bu sayfa daha sonra ilgili formüller eklenerek çalışır hale getirilecektir.
A3: TİCARİ KAR | G3: TİCARİ KAR (GELİR TABLOSUNDAN)
A4: I | B4: KANUNEN KABUL EDİLMEYEN GİDERLER
A5: 1• Önceki Dönem Menkul reeskontları
A6: 2• VUK hükümlerine uygun olmayan Senetsiz Alacaklar için gider yazılan reeskontlar
A7: 3• VUK hükümlerine uygun olmayan Alınan çeklere ait gider yazılan reeskontlar
A8: 4• Bu Dönem Gider Yazılan Kıdem tazminatı karşılığı
A9: 5• Tahakkuk esasına aykırı olarak bu döneme dahil edilmiş belgeye dayandırılmayan giderler
A10: 6• Dönemsellik ilkesine aykırı olarak bu döneme dahil edilmiş belgeye dayandırılmayan tahakkuk ettirilen giderler
A11: 7• İhracat Teslimlerine için yurtdışında yapılan Belgesi alınamayan Giderler (Binde 5 oranını aşmaması gerekir.)
A12: 8• Dönem içinde gider yazılan Bağış ve Yardımlar toplamı
A13: 9• Özel İşlem Vergisi (Cep telefonları ve sabit telefonlara ait)
A14: 10• Şirket Personelinin veya ortaklarının Vefat, Doğum ilişkin Çiçek bedelleri Başsağlığı ilan bedelleri(KDV'leri ile Dahil)
A15: 11• Resmi dairelere ödenen ve gider yazılan cezalar ,trafikcezaları,vergi cezaları,gecikme zammı ve faizleri vs.
A16: 12• Motorlu Taşıtlar Vergisi (Motorlu Taşıt Vergisi Kanunu'nun 14. maddesine göre)
A17: 13• VUK hükümlerine uygun olmayan gider yazılan diğer karşılıklar
A18: 14• Ödenmemiş SSK primleri ve işsizlik primleri (Aralık ayı haricinde ilgili yıl içinde ödenmeyen)
A19: 15• VUK'nun 333,339 nolu tebliğlerine aykırı olarak faydalı ömür süresi uzatılmasından kaynaklanan ve bu dönemde gider yazılan amortisman
A20: 16• Şirket yetkililerin suçlarından dolayı ödenen tazminatlar
A21: 17• İşle ilgili olmayan(Mukavelenameye veya ilama veya kanun emrine istinaden) ödenen tazminatlar,ziyan ve zararlar
A22: 18• VUK'nun 333-339 no.lu tebliğdeki oranların üzerinde olan fazladan ayrılan amortisman tutarı
A23: 19•Kiralama yoluyla edinilen veya işletme aktifinde kayıtlı olann yat,kotra,tekne,uçak ve helikopter gibi taşıtlarından
A24: İŞLETMENİN ESAS FAALİYET KONUSU İLE İLGİLİ OLMAYANLARIN GİDERLERİ İLE AMORTİSMANLARI
A25: 21• Verilen Bahşişler
A26: 22• Şirket tarafından personeline verilen iftar yemekleri(Şirket bünyesinde veya dışında)
A27: 23• Geçmiş döneme ait Giderler (Yıla)Belgeli veya belgeye dayanmayan harcamalar
A28: 24•Şirket personeli için sportif tesislerine ödenen (Belgeli veya belgesiz)giderler
A29: 25.Şirket tarafından kurulan futbol takımın kuruluş ve idamesi için yapılan giderler
A30: 26•Şirket ortakları adına ödenen Bireysel emeklilik ve Bağkur ödemeleri,SAĞLIK SİGORTASI ÖDEMELERİ
A31: 27•Şirket Personelinin veya ortaklarına ait cenaze masrafları
A32: 28•Şirket Personelinin veya ortaklarına ilişkin dinlenme tesislerine ödenen (Kamp yeri,turistik amaclı otel harcamaları)
A33: 29•Şirketçe karşılıksız olarak öğrencilere verilen burs ödemeleri
A34: 30•Şirket Ortaklarına ait evlerin elektrik,su,telefon,internet,doğalgaz vs harcamalarına ilişkin ödemeler
A35: 31•Hatır seneti veya Çek karşılığında bankalardan sağlanan kredilerin ortakların şahsi işlerinde kullanılması halinde ÖDENEN
A36: FAİZLER,KOMİSYONLAR,VERGİLER,HARÇLAR
A37: 32• Şirketin faaliyeti gereği olmayan idarecilerin insiyati gereği üye olunan derneklere yapılan ödemeler
A38: 33•Şirket (kasa,Banka,emtia ,mamul)mevcutlarına ilişkin sayım ve tesellüm noksanlıklarından dolayı gider yazılan kısmı
A39: 34•Şirket ortaklarının şahıslarına ait araçların benzin,taşıt vergisi,bakım onarım,sigorta vs giderleri
A40: 35•Enflasyon Düzeltmelerinin ilgili hesaptan (sermayeye ilavesi haricinde)başka hesaba virman edilen kısmı
A41: 36•Arka arkaya beş yıllık sürede mahsup edilemeyen gider yazılan zarar kısmı
A42: 37•İşletmeden çalınanveya zarara uğratılan ve sigorta şirketince karşılanmayan stok,iktisadi kımetlere ait gider yazılan tutarlar
A43: 38•Şirket ortaklarının işletmedeki özsermayeleri üzerinden ödenen ve hesaplanan faizler
A44: 39Şirket ortaklarının işletmeden çektiği mevcutlar(Paralar,emtialar,mamuller,iktisadi kıymetlerin tutarları)
A45: 40•Takdir Komisyonunca takdir edilmeyen ve emsal bedellerine göre değeri düşen (Doğal afetler,çürümek
A46: kırılmak,paslanmak gibi haller)iktisadi kıymetler ve emtia ve mamuller malların bedelleri (VUK 274-278.maddeleri)
A47: 41•Değeri Düşen malların Katma Değer Vergileri
A48: 42•Sahte belge veya muhteviyatı itibariyle yanıltıcı belge olarak tesbit edilen harcamaların tutarları ve KDV
A49: 43•Vergi Usul Kanunun 323.maddesine uygun olmayan şüpheli alacaklar karşılığı giderleri
A50: 44•Tahsiline imkan kalmayan alacaklardan,Kazai bir hükme veya kanaat verici bir vesikaya dayandırılmayan
A51: gider yazılan değersiz alacaklar tutarı (Vazgeçilen Alacaklar ve Değersiz Alacaklar)
A52: 45•Ticari bir yarar amacı gütmeyen kefaletten dolayı ödenen paralar veya bunlar için ayrılan karşılıklar
A53: 46•VERGİ MEVZUATINA GÖRE ŞİRKET FAALİYETİYLE İLGİLİ OLMAYAN YUKARIDA BAHSEDİLMEYEN ÖDEME VE GİDERLER
A54: 47.İşyerinin dekarosyonu için alınan resim tablosu için yapılan harcamalar
A55: 48.Şirket genel kurulu toplantısı dolayısıyla,kurula iştirak eden üyelerin kişisel masraflar
A56: 49.AYNI SEKTÖRDE FAALİYET GÖSTERMEYEN devir alınan kurumun geçmiş yıl zararlarıKVK'nun14/a.maddesi
A57: 50.Aynı sektörde faaliyet gösteren devir alınan şirketin devir tarihi itibariyle aktif toplamını geçen 5yıllık geçmiş yıl zararları
A58: 51.Satılan iktisadi kıymetin yenilenmesi için yönetim kurulunca karar alınan ve pasifte 3yıl bekletildiği halde kullanılmayan karlar
A59: 52.Emtialarda oluşan zarar nedeniyle sigorta şirketinden zararın tamamının alınamayarak gider yazılan zarar tutarı VUK-330.md
A60: 53. Çalınan veya zayi olunan emtilar, sabit kıymetler v.s kıymetlerin alımında yüklenilen ve indirim konusu yapılan KDV'nin gider yazılan kısım
A61: 54. dönem sonlarında tesbit olunan oluşan sayım noksanlıkları ilişkin yüklenilen yani indirim konusu yapılan KDV'nin Kdv
A62: beyannamesine ilave edilmeyerek gider yazılan indirilecek KDV tutarı
A63: 55. Yukarıda sınıflara girmeyen KANUNEN KABUL EDİLMEYEN GİDERLER
A64: 56. hisse senetlerinin alış bedeli ile değerlemesi yerine ağırlıklı ortalama GVK'NUN GECİCİ 67. maddesi
A65: 57.
A67: II. | B67: ZARAR OLSA DAHİ İNDİRİLECEK İSTİSNALAR
A68: A-İNDİRİMLER
A69: 1• İŞTİRAK KAZAÇLARI (K.V.K. 8/1) (veri)
A70: 2.HİSSE SENETLERİNİN AĞIRLIKLI ORTALAMA İLE DEĞERLEMESİ NEDENİYLE ALIŞ BEDELİNİN ÜSTÜNDEKİ KISMININ GELİR YAZILAN TUTARI
A71: 3.YATIRIM ORTAKLIĞI FALİYET GELİRLERİ
A72: 3• Rüçhan hakkı satışı ve emisyon primi kazancı (K.V.K. 8/5) (veri)
A73: 4• Eğitim ve öğretim kurumları ile rehabilitasyon merkezlerinin işletmesinden elde edilen kazanç
A74: 5• Kurumlar vergisi kanununun geçici 28/(a) maddesinde düzenlenen istisna kazanç
A75: 6• Yurtdışı iştirak ve şube kazançları (KVK geçici madde 33)
A76: 7• Serbest bölgelerde elde edilen kazançlar
A77: 8• 4325 sayılı Kanun kapsamında istisna kazançlar
A78: 9• Teknoloji gelişme bölgelerinde elde edilen kazançlar
A79: 9• AR-GE İndirimi (KVK Madde 14/6)
A80: 10• Diğer indirimler ve istisnalar
A81: B- DİĞER İNDİRİMLER
A82: ~ 2004 yılında gelir yazılan devlet tahvili reeskontunun iptali
A83: ~ Verilen vadeli çekler reeskont faiz geliri
A84: ~ Konusu kalmayan karşılıklar
A85: ~ Önceki dönem alınan vadeli çek reeskontları
A86: ~ Gelecek dönem vergilendirilecek teşvik primleri
A87: ~ Bilanço karına dahil edilmiş SERBEST BÖLGE gelirleri
A88: ~ Sermaye Blokajındaki Bağlı Menkul Kıymetin gelir tahakkuku
A89: ~ Mali açıdan gerekli olmayan gelir tahakkukları
A90: ~ Provizyon-komisyon gelirleri
A91: ~ GVK'nun 42 nci maddesi kapsamındaki işlerin tamamlanması sonucu hesapla-
A92: nan ve gelir tablosundaki kar veya zarara dahil edilmiş bulunan KAZANÇ tutarı
A93: ~ GVK'nun 42 nci maddesi kapsamında olup kazancı yukarıda diğer indirim
A94: olarak dikkate alınmış işlerle ilgili kanunen kabul edilmeyen giderler.
A95: (Bu giderler yukarıda KKEG'e dahil edimişse burada dikkate alınır.)
A97: III. | B97: MAHSUP EDİLECEK GEÇMİŞ YIL ZARARLARI
A98: A | B98: ŞİRKETİN, KURUMLAR VERGİSİ BEYANNAMESİNDE GÖSTERİLEN MALİ ZARARLAR
G99: 2002
G100: 2003
G101: 2004
G102: 2005
G103: 2006
A104: B-ŞİRKETÇE AYNI SEKTÖRDE FAALİYET GÖSTEREN DEVİR ALINAN ŞİRKETİN DEVİR TARİHİ İTİBARİYLE AKTİF TOPLAMINI
A105: GEÇMEYEN MÜNFESİH OLAN ŞİRKETÇE KURUMLAR VERGİSİ BEYANNAMELERİNDE GÖSTERİLEN 5 YILLIK GEÇMİŞ YIL ZARAR
G106: =+G99 -> 2002
G107: =+G100 -> 2003
G108: =+G101 -> 2004
G109: =+G102 -> 2005
G110: =+G103 -> 2006
A112: IV- | B112: RİSTURNLAR | D112: (Kooperatiflere mahsustur.)
A113: V- | B113: YATIRIM İNDİRİMİ
A114: A)- YATIRIM TEŞVİK BELGELİ HARCAMALAR
A115: 1)- 24.4.2003 tarihinden önceki yatırım teşvik belgelerine istinaden yapılan harcamalar
A116: • Önceki yıldan devreden indirimin fiili harcamadan kaynaklanan kısmının
A117: endekslenmiş tutarı (Devir tutarının "1+ilan edilen yeniden
A118: değerleme oranı" ile çarpılması sonucu bulunur.Endekslenmesi mümkün olmayanlar için
A119: bu artırım yapılmaz.)
A120: • Önceki yıldan devreden indirimin öngörülen harcamalardan kaynaklanan kısmı
A121: (Endekslenmeden dikkate alınır.)
A122: • Geçici vergi dönemi içinde yapılan fiili harcamadan kaynaklanan
A123: indirim (Buraya öngörülen harcamayı aşan fiili harcamalardan
A124: kaynaklanan indirim tutarı yazılır.)
A126: B)-YATIRIM TEŞVİK BELGESİZ HARCAMALAR
A128: c) | B128: DİĞER İNDİRİMLER
B129: BAĞIŞ VE YARDIMLAR
A130: d) | B130: ÖNCEKİ DÖNEMLERDE HESAPLANAN GEÇİCİ VERGİ
A131: 9 .
A132: Buraya ilk geçici vergi döneminde "0", ikinci geçici vergi döneminde ilk dönemde hesaplanan
A133: geçici vergi, üçüncü ve dördüncü dönemlerde ise önceki dönemlerde TAHAKKUK ETMİŞ OLAN
A134: geçici vergi tutarlarından EN BÜYÜĞÜ yazılır. (Ödenmiş olması gerekmez.) | B134: MAHSUP EDİLECEK TEVKİFAT TUTARI
A135: 10 .
A136: Buraya bu geçici vergi döneminde uğranılanlar ile önceki geçici vergi dönemlerinde mahsup
A137: edilemeyip bu döneme devreden gelir vergisi stopajlarının toplamı (fon payı hariç) yazılır.
A138: (G.V.K. 42. Madde kapsamındaki stopajlar hariç)
A140: KURUMLAR VERGİSİ MATRAHI
A142: KURUMLAR VERGİSİ HESABI
C143: 0.2 | D143: =A144*30/100 -> 0 | G143: =I140*20/100 -> 0
A145: TOPLAM ÖDENEN GECİCİ VERGİ TUTARI
A149: ÖDENECEK KURUMLAR VERGİSİ TUTARI

Sheet e-aktif (hidden)
A1: I. DÖNEN VARLIKLAR
A2: A-Hazır Değerler
A3: 1-Kasa | B3: =IF('BİLANÇO-A'!D9=0,"",'BİLANÇO-A'!D9) -> 17443.64 | C3: =IF('BİLANÇO-A'!F9=0,"",'BİLANÇO-A'!F9) -> 44719.35
A4: 2-Alınan Çekler | B4: =IF('BİLANÇO-A'!D10=0,"",'BİLANÇO-A'!D10) ->  | C4: =IF('BİLANÇO-A'!F10=0,"",'BİLANÇO-A'!F10) -> 
A5: 3-Bankalar | B5: =IF('BİLANÇO-A'!D11=0,"",'BİLANÇO-A'!D11) -> 3461771.03 | C5: =IF('BİLANÇO-A'!F11=0,"",'BİLANÇO-A'!F11) -> 94609.21
A6: 4-Verilen Çekler ve Ödeme Emirleri (-) | B6: =IF('BİLANÇO-A'!D12=0,"",'BİLANÇO-A'!D12) ->  | C6: =IF('BİLANÇO-A'!F12=0,"",'BİLANÇO-A'!F12) -> 
A7: 5-Diğer Hazır Değerler | B7: =IF('BİLANÇO-A'!D13=0,"",'BİLANÇO-A'!D13) ->  | C7: =IF('BİLANÇO-A'!F13=0,"",'BİLANÇO-A'!F13) -> 
A8: B-Menkul Kıymetler
A9: 1-Hisse Senetleri | B9: =IF('BİLANÇO-A'!D15=0,"",'BİLANÇO-A'!D15) ->  | C9: =IF('BİLANÇO-A'!F15=0,"",'BİLANÇO-A'!F15) -> 
A10: 2-Özel Kesim Tahvil, Senet ve Bonoları | B10: =IF('BİLANÇO-A'!D16=0,"",'BİLANÇO-A'!D16) ->  | C10: =IF('BİLANÇO-A'!F16=0,"",'BİLANÇO-A'!F16) -> 
A11: 3-Kamu Kesimi Tahvil, Senet ve Bonoları | B11: =IF('BİLANÇO-A'!D17=0,"",'BİLANÇO-A'!D17) ->  | C11: =IF('BİLANÇO-A'!F17=0,"",'BİLANÇO-A'!F17) -> 
A12: 4-Diğer Menkul Kıymetler | B12: =IF('BİLANÇO-A'!D18=0,"",'BİLANÇO-A'!D18) ->  | C12: =IF('BİLANÇO-A'!F18=0,"",'BİLANÇO-A'!F18) -> 
A13: 5-Menkul Kıymetler Değer Düşüklüğü Karşılığı (-) | B13: =IF('BİLANÇO-A'!D19=0,"",'BİLANÇO-A'!D19) ->  | C13: =IF('BİLANÇO-A'!F19=0,"",'BİLANÇO-A'!F19) -> 
A14: C-Ticari Alacaklar
A15: 1-Alıcılar | B15: =IF('BİLANÇO-A'!D21=0,"",'BİLANÇO-A'!D21) -> 2693583.5 | C15: =IF('BİLANÇO-A'!F21=0,"",'BİLANÇO-A'!F21) -> 995299.07
A16: 2-Alacak Senetleri | B16: =IF('BİLANÇO-A'!D22=0,"",'BİLANÇO-A'!D22) ->  | C16: =IF('BİLANÇO-A'!F22=0,"",'BİLANÇO-A'!F22) -> 53236.15
A17: 3-Alacak Senetleri Reeskontu (-) | B17: =IF('BİLANÇO-A'!D23=0,"",'BİLANÇO-A'!D23) ->  | C17: =IF('BİLANÇO-A'!F23=0,"",'BİLANÇO-A'!F23) -> 
A18: 4-Kazanılmamış Finansal Kiralama Faiz Gelirleri (-) | B18: =IF('BİLANÇO-A'!D24=0,"",'BİLANÇO-A'!D24) ->  | C18: =IF('BİLANÇO-A'!F24=0,"",'BİLANÇO-A'!F24) -> 
A19: 5-Verilen Depozito ve Teminatlar | B19: =IF('BİLANÇO-A'!D25=0,"",'BİLANÇO-A'!D25) -> 113.89 | C19: =IF('BİLANÇO-A'!F25=0,"",'BİLANÇO-A'!F25) -> 49
A20: 6-Diğer Ticari Alacaklar | B20: =IF('BİLANÇO-A'!D26=0,"",'BİLANÇO-A'!D26) -> 3545912.68 | C20: =IF('BİLANÇO-A'!F26=0,"",'BİLANÇO-A'!F26) -> 3897380.84
A21: 7-Şüpheli Ticari Alacaklar | B21: =IF('BİLANÇO-A'!D27=0,"",'BİLANÇO-A'!D27) -> 30000 | C21: =IF('BİLANÇO-A'!F27=0,"",'BİLANÇO-A'!F27) -> 
A22: 8-Şüpheli Ticari Alacaklar Karşılığı (-) | B22: =IF('BİLANÇO-A'!D28=0,"",'BİLANÇO-A'!D28) ->  | C22: =IF('BİLANÇO-A'!F28=0,"",'BİLANÇO-A'!F28) -> 
A23: D-Diğer Alacaklar
A24: 1-Ortaklardan Alacaklar | B24: =IF('BİLANÇO-A'!D30=0,"",'BİLANÇO-A'!D30) ->  | C24: =IF('BİLANÇO-A'!F30=0,"",'BİLANÇO-A'!F30) -> 
A25: 2-İştiraklerden Alacaklar | B25: =IF('BİLANÇO-A'!D31=0,"",'BİLANÇO-A'!D31) ->  | C25: =IF('BİLANÇO-A'!F31=0,"",'BİLANÇO-A'!F31) -> 
A26: 3-Bağlı Ortaklıklardan Alacaklar | B26: =IF('BİLANÇO-A'!D32=0,"",'BİLANÇO-A'!D32) ->  | C26: =IF('BİLANÇO-A'!F32=0,"",'BİLANÇO-A'!F32) -> 
A27: 4-Personelden Alacaklar | B27: =IF('BİLANÇO-A'!D33=0,"",'BİLANÇO-A'!D33) ->  | C27: =IF('BİLANÇO-A'!F33=0,"",'BİLANÇO-A'!F33) -> 
A28: 5-Diğer Çeşitli Alacaklar | B28: =IF('BİLANÇO-A'!D34=0,"",'BİLANÇO-A'!D34) ->  | C28: =IF('BİLANÇO-A'!F34=0,"",'BİLANÇO-A'!F34) -> 
A29: 6-Diğer Alacak Senetleri Reeskontu (-) | B29: =IF('BİLANÇO-A'!D35=0,"",'BİLANÇO-A'!D35) ->  | C29: =IF('BİLANÇO-A'!F35=0,"",'BİLANÇO-A'!F35) -> 
A30: 7-Şüpheli Diğer Alacaklar | B30: =IF('BİLANÇO-A'!D36=0,"",'BİLANÇO-A'!D36) ->  | C30: =IF('BİLANÇO-A'!F36=0,"",'BİLANÇO-A'!F36) -> 
A31: 8-Şüpheli Diğer Alacaklar Karşılığı (-) | B31: =IF('BİLANÇO-A'!D37=0,"",'BİLANÇO-A'!D37) ->  | C31: =IF('BİLANÇO-A'!F37=0,"",'BİLANÇO-A'!F37) -> 
A32: E-Stoklar
A33: 1-İlk Madde ve Malzeme | B33: =IF('BİLANÇO-A'!D39=0,"",'BİLANÇO-A'!D39) ->  | C33: =IF('BİLANÇO-A'!F39=0,"",'BİLANÇO-A'!F39) -> 
A34: 2-Yarı Mamuller-Üretim | B34: =IF('BİLANÇO-A'!D40=0,"",'BİLANÇO-A'!D40) ->  | C34: =IF('BİLANÇO-A'!F40=0,"",'BİLANÇO-A'!F40) -> 
A35: 3-Mamuller | B35: =IF('BİLANÇO-A'!D41=0,"",'BİLANÇO-A'!D41) ->  | C35: =IF('BİLANÇO-A'!F41=0,"",'BİLANÇO-A'!F41) -> 
A36: 4-Ticari Mallar | B36: =IF('BİLANÇO-A'!D42=0,"",'BİLANÇO-A'!D42) ->  | C36: =IF('BİLANÇO-A'!F42=0,"",'BİLANÇO-A'!F42) -> 
A37: 5-Diğer Stoklar | B37: =IF('BİLANÇO-A'!D43=0,"",'BİLANÇO-A'!D43) -> 4631.26 | C37: =IF('BİLANÇO-A'!F43=0,"",'BİLANÇO-A'!F43) -> 338.58
A38: 6-Stok Değer Düşüklüğü Karşılığı (-) | B38: =IF('BİLANÇO-A'!D44=0,"",'BİLANÇO-A'!D44) ->  | C38: =IF('BİLANÇO-A'!F44=0,"",'BİLANÇO-A'!F44) -> 
A39: 7-Verilen Sipariş Avansları | B39: =IF('BİLANÇO-A'!D45=0,"",'BİLANÇO-A'!D45) ->  | C39: =IF('BİLANÇO-A'!F45=0,"",'BİLANÇO-A'!F45) -> 
A40: F-Yıllara Yaygın İnşaat ve Onarım Maliyetleri
A41: 1-Yıllara Yaygın İnşaat ve Onarım Maliyetleri | B41: =IF('BİLANÇO-A'!D47=0,"",'BİLANÇO-A'!D47) ->  | C41: =IF('BİLANÇO-A'!F47=0,"",'BİLANÇO-A'!F47) -> 
A42: 2-Yıllara Yaygın İnşaat Enflasyon Düzeltme Hesabı | B42: =IF('BİLANÇO-A'!D55=0,"",'BİLANÇO-A'!D55) ->  | C42: =IF('BİLANÇO-A'!F55=0,"",'BİLANÇO-A'!F55) -> 
A43: 3-Taşeronlara Verilen Avanslar | B43: =IF('BİLANÇO-A'!D56=0,"",'BİLANÇO-A'!D56) ->  | C43: =IF('BİLANÇO-A'!F56=0,"",'BİLANÇO-A'!F56) -> 
A44: G-Gelecek Aylara Ait Giderler ve Gelir Tahakkukları
A45: 1-Gelecek Aylara Ait Giderler | B45: =IF('BİLANÇO-A'!D58=0,"",'BİLANÇO-A'!D58) -> 38572.86 | C45: =IF('BİLANÇO-A'!F58=0,"",'BİLANÇO-A'!F58) -> 37136.34
A46: 2-Gelir Tahakkukları | B46: =IF('BİLANÇO-A'!D59=0,"",'BİLANÇO-A'!D59) -> 16809.85 | C46: =IF('BİLANÇO-A'!F59=0,"",'BİLANÇO-A'!F59) -> 
A47: H-Diğer Dönen Varlıklar
A48: 1-Devreden KDV | B48: =IF('BİLANÇO-A'!D61=0,"",'BİLANÇO-A'!D61) ->  | C48: =IF('BİLANÇO-A'!F61=0,"",'BİLANÇO-A'!F61) -> 
A49: 2-İndirilecek KDV | B49: =IF('BİLANÇO-A'!D62=0,"",'BİLANÇO-A'!D62) ->  | C49: =IF('BİLANÇO-A'!F62=0,"",'BİLANÇO-A'!F62) -> 
A50: 3-Diğer KDV | B50: =IF('BİLANÇO-A'!D63=0,"",'BİLANÇO-A'!D63) ->  | C50: =IF('BİLANÇO-A'!F63=0,"",'BİLANÇO-A'!F63) -> 
A51: 4-Peşin Ödenen Vergiler ve Fonlar | B51: =IF('BİLANÇO-A'!D64=0,"",'BİLANÇO-A'!D64) -> 229386.67 | C51: =IF('BİLANÇO-A'!F64=0,"",'BİLANÇO-A'!F64) -> 24378.61
A52: 5-İş Avansları | B52: =IF('BİLANÇO-A'!D65=0,"",'BİLANÇO-A'!D65) ->  | C52: =IF('BİLANÇO-A'!F65=0,"",'BİLANÇO-A'!F65) -> 
A53: 6-Personel Avansları | B53: =IF('BİLANÇO-A'!D66=0,"",'BİLANÇO-A'!D66) -> 36250 | C53: =IF('BİLANÇO-A'!F66=0,"",'BİLANÇO-A'!F66) -> 
A54: 7-Sayım ve Tesellüm Noksanları | B54: =IF('BİLANÇO-A'!D67=0,"",'BİLANÇO-A'!D67) ->  | C54: =IF('BİLANÇO-A'!F67=0,"",'BİLANÇO-A'!F67) -> 
A55: 8-Diğer Çeşitli Dönen Varlıklar | B55: =IF('BİLANÇO-A'!D68=0,"",'BİLANÇO-A'!D68) ->  | C55: =IF('BİLANÇO-A'!F68=0,"",'BİLANÇO-A'!F68) -> 
A56: 9-Diğer Dönen Varlıklar Karşılığı (-) | B56: =IF('BİLANÇO-A'!D69=0,"",'BİLANÇO-A'!D69) ->  | C56: =IF('BİLANÇO-A'!F69=0,"",'BİLANÇO-A'!F69) -> 
A57: II. DURAN VARLIKLAR
A58: A-Ticari Alacaklar
A59: 1-Alıcılar | B59: =IF('BİLANÇO-A'!D72=0,"",'BİLANÇO-A'!D72) ->  | C59: =IF('BİLANÇO-A'!F72=0,"",'BİLANÇO-A'!F72) -> 
A60: 2-Alacak Senetleri | B60: =IF('BİLANÇO-A'!D73=0,"",'BİLANÇO-A'!D73) ->  | C60: =IF('BİLANÇO-A'!F73=0,"",'BİLANÇO-A'!F73) -> 
A61: 3-Alacak Senetleri Reeskontu (-) | B61: =IF('BİLANÇO-A'!D74=0,"",'BİLANÇO-A'!D74) ->  | C61: =IF('BİLANÇO-A'!F74=0,"",'BİLANÇO-A'!F74) -> 
A62: 4-Kazanılmamış Finansal Kiralama Faiz Gelirleri (-) | B62: =IF('BİLANÇO-A'!D75=0,"",'BİLANÇO-A'!D75) ->  | C62: =IF('BİLANÇO-A'!F75=0,"",'BİLANÇO-A'!F75) -> 
A63: 5-Verilen Depozito ve Teminatlar | B63: =IF('BİLANÇO-A'!D76=0,"",'BİLANÇO-A'!D76) ->  | C63: =IF('BİLANÇO-A'!F76=0,"",'BİLANÇO-A'!F76) -> 
A64: 6-Şüpheli Alacaklar Karşılığı (-) | B64: =IF('BİLANÇO-A'!D77=0,"",'BİLANÇO-A'!D77) ->  | C64: =IF('BİLANÇO-A'!F77=0,"",'BİLANÇO-A'!F77) -> 
A65: B-Diğer Alacaklar
A66: 1-Ortaklardan Alacaklar | B66: =IF('BİLANÇO-A'!D79=0,"",'BİLANÇO-A'!D79) ->  | C66: =IF('BİLANÇO-A'!F79=0,"",'BİLANÇO-A'!F79) -> 
A67: 2-İştiraklerden Alacaklar | B67: =IF('BİLANÇO-A'!D80=0,"",'BİLANÇO-A'!D80) ->  | C67: =IF('BİLANÇO-A'!F80=0,"",'BİLANÇO-A'!F80) -> 
A68: 3-Bağlı Ortaklıklardan Alacaklar | B68: =IF('BİLANÇO-A'!D81=0,"",'BİLANÇO-A'!D81) ->  | C68: =IF('BİLANÇO-A'!F81=0,"",'BİLANÇO-A'!F81) -> 
A69: 4-Personelden Alacaklar | B69: =IF('BİLANÇO-A'!D82=0,"",'BİLANÇO-A'!D82) ->  | C69: =IF('BİLANÇO-A'!F82=0,"",'BİLANÇO-A'!F82) -> 
A70: 5-Diğer Çeşitli Alacaklar | B70: =IF('BİLANÇO-A'!D83=0,"",'BİLANÇO-A'!D83) ->  | C70: =IF('BİLANÇO-A'!F83=0,"",'BİLANÇO-A'!F83) -> 
A71: 6-Diğer Alacak Senetleri Reeskontu (-) | B71: =IF('BİLANÇO-A'!D84=0,"",'BİLANÇO-A'!D84) ->  | C71: =IF('BİLANÇO-A'!F84=0,"",'BİLANÇO-A'!F84) -> 
A72: 7-Şüpheli Diğer Alacaklar Karşılığı (-) | B72: =IF('BİLANÇO-A'!D85=0,"",'BİLANÇO-A'!D85) ->  | C72: =IF('BİLANÇO-A'!F85=0,"",'BİLANÇO-A'!F85) -> 
A73: C-Mali Duran Varlıklar
A74: 1-Bağlı Menkul Kıymetler | B74: =IF('BİLANÇO-A'!D87=0,"",'BİLANÇO-A'!D87) ->  | C74: =IF('BİLANÇO-A'!F87=0,"",'BİLANÇO-A'!F87) -> 
A75: 2-Bağlı Menkul Kıymetler Değer Düşüklüğü karşılığı (-) | B75: =IF('BİLANÇO-A'!D88=0,"",'BİLANÇO-A'!D88) ->  | C75: =IF('BİLANÇO-A'!F88=0,"",'BİLANÇO-A'!F88) -> 
A76: 3-İştirakler | B76: =IF('BİLANÇO-A'!D89=0,"",'BİLANÇO-A'!D89) ->  | C76: =IF('BİLANÇO-A'!F89=0,"",'BİLANÇO-A'!F89) -> 
A77: 4-İştiraklere Sermaye Taahhütleri (-) | B77: =IF('BİLANÇO-A'!D90=0,"",'BİLANÇO-A'!D90) ->  | C77: =IF('BİLANÇO-A'!F90=0,"",'BİLANÇO-A'!F90) -> 
A78: 5-İştirakler Sermaye Payları değer Düşüklüğü Karşılığı (-) | B78: =IF('BİLANÇO-A'!D91=0,"",'BİLANÇO-A'!D91) ->  | C78: =IF('BİLANÇO-A'!F91=0,"",'BİLANÇO-A'!F91) -> 
A79: 6-Bağlı Ortaklıklar | B79: =IF('BİLANÇO-A'!D92=0,"",'BİLANÇO-A'!D92) ->  | C79: =IF('BİLANÇO-A'!F92=0,"",'BİLANÇO-A'!F92) -> 
A80: 7-Bağlı Ortaklıklara Sermaye Taahhütleri (-) | B80: =IF('BİLANÇO-A'!D93=0,"",'BİLANÇO-A'!D93) ->  | C80: =IF('BİLANÇO-A'!F93=0,"",'BİLANÇO-A'!F93) -> 
A81: 8-Bağlı Ortaklıklara Sermaye Payları Değ.Düş.Karşılığı (-) | B81: =IF('BİLANÇO-A'!D94=0,"",'BİLANÇO-A'!D94) ->  | C81: =IF('BİLANÇO-A'!F94=0,"",'BİLANÇO-A'!F94) -> 
A82: 9-Diğer Mali Duran Varlıklar | B82: =IF('BİLANÇO-A'!D95=0,"",'BİLANÇO-A'!D95) ->  | C82: =IF('BİLANÇO-A'!F95=0,"",'BİLANÇO-A'!F95) -> 
A83: 10-Diğer Mali Duran Varlıklar Karşılığı (-) | B83: =IF('BİLANÇO-A'!D96=0,"",'BİLANÇO-A'!D96) ->  | C83: =IF('BİLANÇO-A'!F96=0,"",'BİLANÇO-A'!F96) -> 
A84: D-Maddi Duran Varlıklar
A85: 1-Arazi ve Arsalar | B85: =IF('BİLANÇO-A'!D98=0,"",'BİLANÇO-A'!D98) ->  | C85: =IF('BİLANÇO-A'!F98=0,"",'BİLANÇO-A'!F98) -> 
A86: 2-Yer altı ve Yer Üstü Düzenleri | B86: =IF('BİLANÇO-A'!D99=0,"",'BİLANÇO-A'!D99) ->  | C86: =IF('BİLANÇO-A'!F99=0,"",'BİLANÇO-A'!F99) -> 
A87: 3-Binalar | B87: =IF('BİLANÇO-A'!D100=0,"",'BİLANÇO-A'!D100) ->  | C87: =IF('BİLANÇO-A'!F100=0,"",'BİLANÇO-A'!F100) -> 
A88: 4-Tesis, Makine ve Cihazlar | B88: =IF('BİLANÇO-A'!D101=0,"",'BİLANÇO-A'!D101) ->  | C88: =IF('BİLANÇO-A'!F101=0,"",'BİLANÇO-A'!F101) -> 
A89: 5-Taşıtlar | B89: =IF('BİLANÇO-A'!D102=0,"",'BİLANÇO-A'!D102) -> 1217541.88 | C89: =IF('BİLANÇO-A'!F102=0,"",'BİLANÇO-A'!F102) -> 446482.36
A90: 6-Demirbaşlar | B90: =IF('BİLANÇO-A'!D103=0,"",'BİLANÇO-A'!D103) -> 374015.85 | C90: =IF('BİLANÇO-A'!F103=0,"",'BİLANÇO-A'!F103) -> 374250.51
A91: 7-Diğer Maddi Duran Varlıklar | B91: =IF('BİLANÇO-A'!D104=0,"",'BİLANÇO-A'!D104) ->  | C91: =IF('BİLANÇO-A'!F104=0,"",'BİLANÇO-A'!F104) -> 
A92: 8-Birikmiş Amortismanlar (-) | B92: =IF('BİLANÇO-A'!D105=0,"",'BİLANÇO-A'!D105) -> 1515930.59 | C92: =IF('BİLANÇO-A'!F105=0,"",'BİLANÇO-A'!F105) -> 800383.8
A93: 9-Yapılmakta Olan Yatırımlar | B93: =IF('BİLANÇO-A'!D106=0,"",'BİLANÇO-A'!D106) ->  | C93: =IF('BİLANÇO-A'!F106=0,"",'BİLANÇO-A'!F106) -> 
A94: 10-Verilen Avanslar | B94: =IF('BİLANÇO-A'!D107=0,"",'BİLANÇO-A'!D107) ->  | C94: =IF('BİLANÇO-A'!F107=0,"",'BİLANÇO-A'!F107) -> 
A95: E-Maddi Olmayan Duran Varlıklar
A96: 1-Haklar | B96: =IF('BİLANÇO-A'!D109=0,"",'BİLANÇO-A'!D109) -> 1004.53 | C96: =IF('BİLANÇO-A'!F109=0,"",'BİLANÇO-A'!F109) -> 1004.53
A97: 2-Şerefiye | B97: =IF('BİLANÇO-A'!D110=0,"",'BİLANÇO-A'!D110) ->  | C97: =IF('BİLANÇO-A'!F110=0,"",'BİLANÇO-A'!F110) -> 
A98: 3-Kuruluş ve Örgütlenme Giderleri | B98: =IF('BİLANÇO-A'!D111=0,"",'BİLANÇO-A'!D111) ->  | C98: =IF('BİLANÇO-A'!F111=0,"",'BİLANÇO-A'!F111) -> 
A99: 4-Araştırma ve Geliştirme Giderleri | B99: =IF('BİLANÇO-A'!D112=0,"",'BİLANÇO-A'!D112) ->  | C99: =IF('BİLANÇO-A'!F112=0,"",'BİLANÇO-A'!F112) -> 
A100: 5-Özel Maliyetler | B100: =IF('BİLANÇO-A'!D113=0,"",'BİLANÇO-A'!D113) -> 22008804.37 | C100: =IF('BİLANÇO-A'!F113=0,"",'BİLANÇO-A'!F113) -> 
A101: 6-Diğer Maddi Olmayan Duran Varlıklar | B101: =IF('BİLANÇO-A'!D114=0,"",'BİLANÇO-A'!D114) -> 7447.37 | C101: =IF('BİLANÇO-A'!F114=0,"",'BİLANÇO-A'!F114) -> 7447.37
A102: 7-Birikmiş Amortismanlar (-) | B102: =IF('BİLANÇO-A'!D115=0,"",'BİLANÇO-A'!D115) -> 22015258.24 | C102: =IF('BİLANÇO-A'!F115=0,"",'BİLANÇO-A'!F115) -> 6926.48
A103: 8-Verilen Avanslar | B103: =IF('BİLANÇO-A'!D116=0,"",'BİLANÇO-A'!D116) ->  | C103: =IF('BİLANÇO-A'!F116=0,"",'BİLANÇO-A'!F116) -> 
A104: F-Özel Tükenmeye Tabi Varlıklar
A105: 1-Arama Giderleri | B105: =IF('BİLANÇO-A'!D118=0,"",'BİLANÇO-A'!D118) ->  | C105: =IF('BİLANÇO-A'!F118=0,"",'BİLANÇO-A'!F118) -> 
A106: 2-Hazırlık ve Geliştirme Giderleri | B106: =IF('BİLANÇO-A'!D119=0,"",'BİLANÇO-A'!D119) ->  | C106: =IF('BİLANÇO-A'!F119=0,"",'BİLANÇO-A'!F119) -> 
A107: 3-Diğer Özel Tükenmeye Tabi Varlıklar | B107: =IF('BİLANÇO-A'!D120=0,"",'BİLANÇO-A'!D120) ->  | C107: =IF('BİLANÇO-A'!F120=0,"",'BİLANÇO-A'!F120) -> 
A108: 4-Birikmiş Tükenme Payları (-) | B108: =IF('BİLANÇO-A'!D121=0,"",'BİLANÇO-A'!D121) ->  | C108: =IF('BİLANÇO-A'!F121=0,"",'BİLANÇO-A'!F121) -> 
A109: 5-Verilen Avanslar | B109: =IF('BİLANÇO-A'!D122=0,"",'BİLANÇO-A'!D122) ->  | C109: =IF('BİLANÇO-A'!F122=0,"",'BİLANÇO-A'!F122) -> 
A110: G-Gelecek Yıllara Ait Giderler ve Gelir Tahakkukları
A111: 1-Gelecek Yıllara Ait Giderler | B111: =IF('BİLANÇO-A'!D124=0,"",'BİLANÇO-A'!D124) -> 1620.32 | C111: =IF('BİLANÇO-A'!F124=0,"",'BİLANÇO-A'!F124) -> 1620.32
A112: 2-Gelir Tahakkukları | B112: =IF('BİLANÇO-A'!D125=0,"",'BİLANÇO-A'!D125) ->  | C112: =IF('BİLANÇO-A'!F125=0,"",'BİLANÇO-A'!F125) -> 
A113: H-Diğer Duran Varlıklar
A114: 1-Gelecek Yıllarda İndirilecek KDV | B114: =IF('BİLANÇO-A'!D127=0,"",'BİLANÇO-A'!D127) ->  | C114: =IF('BİLANÇO-A'!F127=0,"",'BİLANÇO-A'!F127) -> 
A115: 2-Diğer KDV | B115: =IF('BİLANÇO-A'!D128=0,"",'BİLANÇO-A'!D128) ->  | C115: =IF('BİLANÇO-A'!F128=0,"",'BİLANÇO-A'!F128) -> 
A116: 3-Gelecek Yıllar İhtiyacı Stoklar | B116: =IF('BİLANÇO-A'!D129=0,"",'BİLANÇO-A'!D129) ->  | C116: =IF('BİLANÇO-A'!F129=0,"",'BİLANÇO-A'!F129) -> 
A117: 4-Elden Çıkarılacak Stoklar ve Maddi Duran Varlıklar | B117: =IF('BİLANÇO-A'!D130=0,"",'BİLANÇO-A'!D130) ->  | C117: =IF('BİLANÇO-A'!F130=0,"",'BİLANÇO-A'!F130) -> 
A118: 5-Peşin Ödenen Vergiler ve Fonlar | B118: =IF('BİLANÇO-A'!D131=0,"",'BİLANÇO-A'!D131) ->  | C118: =IF('BİLANÇO-A'!F131=0,"",'BİLANÇO-A'!F131) -> 
A119: 6-Diğer Çeşitli Duran Varlıklar | B119: =IF('BİLANÇO-A'!D132=0,"",'BİLANÇO-A'!D132) ->  | C119: =IF('BİLANÇO-A'!F132=0,"",'BİLANÇO-A'!F132) -> 
A120: 7-Stok Değer Düşüklüğü Karşılığı (-) | B120: =IF('BİLANÇO-A'!D133=0,"",'BİLANÇO-A'!D133) ->  | C120: =IF('BİLANÇO-A'!F133=0,"",'BİLANÇO-A'!F133) -> 
A121: 8-Birikmiş Amortismanlar (-) | B121: =IF('BİLANÇO-A'!D134=0,"",'BİLANÇO-A'!D134) ->  | C121: =IF('BİLANÇO-A'!F134=0,"",'BİLANÇO-A'!F134) -> 
A122: AKTİF (VARLIKLAR) TOPLAMI

Sheet BİLANÇO-P (hidden)
A1: CariDönemMizan | C1: =Bilgiler!B1 -> 0
A2: ÖncekiDönemMizan | C2: AYRINTILI BİLANÇOLARI
C3: ="( " &Bilgiler!B26 & " )" -> ( TL )
C5: PASİF ( KAYNAKLAR) | D5: Önceki Dönem | F5: Cari Dönem
D6: =Bilgiler!B11 -> 31.12.2012 | F6: =Bilgiler!B12 -> 31.12.2013
B7: * | C7: KISA VADELİ YABANCI KAYNAKLAR TOPLAMI | E7: =SUM(E8:E51) -> 1221591.7 | G7: =SUM(G8:G51) -> 1921902.08
B8: * | C8: A-Mali Borçlar | E8: =SUM(D9:D10,D12:D15,D17)-SUM(D11,D16) -> 0 | G8: =SUM(F9:F10,F12:F15,F17)-SUM(F11,F16) -> 0
A9: 300 | B9: 8 | C9: 1-Banka Kredileri | D9: 0 | F9: 0
A10: 301 | B10: 8 | C10: 2-Finansal Kiralama İşlemlerinden Borçlar | D10: 0 | F10: 0
A11: 302 | B11: 7 | C11: 3-Ertelenmiş Finansal Kiralama Borçlanma Maliyetleri (-) | D11: 0 | F11: 0
A12: 303 | B12: 8 | C12: 4-Uzun Vadeli Kredilerin Anapara Taksitleri ve Faizleri | D12: 0 | F12: 0
A13: 304 | B13: 8 | C13: 5-Tahvil, Anapara, Borç Taksit ve Faizleri | D13: 0 | F13: 0
A14: 305 | B14: 8 | C14: 6-Çıkarılmış Bonolar ve Senetler | D14: 0 | F14: 0
A15: 306 | B15: 8 | C15: 7-Çıkarılmış Diğer Menkul Kıymetler | D15: 0 | F15: 0
A16: 308 | B16: 7 | C16: 8-Menkul Kıymetler İhraç Farkı (-) | D16: 0 | F16: 0
A17: 309 | B17: 8 | C17: 9-Diğer Mali Borçlar | D17: 0 | F17: 0
B18: * | C18: B-Ticari Borçlar | E18: =SUM(D19:D20,D22:D23)-D21 -> 1106708.83 | G18: =SUM(F19:F20,F22:F23)-F21 -> 2276059.84
A19: 320 | B19: 8 | C19: 1-Satıcılar | D19: 124756.56 | F19: 2038557.56
A20: 321 | B20: 8 | C20: 2-Borç Senetleri | D20: 0 | F20: 0
A21: 322 | B21: 7 | C21: 3-Borç Senetleri Reeskontu (-) | D21: 0 | F21: 0
A22: 326 | B22: 8 | C22: 4-Alınan Depozito ve Teminatlar | D22: 322654.91 | F22: 237025.48
A23: 329 | B23: 8 | C23: 5-Diğer Ticari Borçlar | D23: 659297.36 | F23: 476.8
B24: * | C24: C-Diğer Borçlar | E24: =SUM(D25:D29)-D30 -> 25604.48 | G24: =SUM(F25:F29)-F30 -> 227411.88
A25: 331 | B25: 8 | C25: 1-Ortaklara Borçlar | D25: 0 | F25: 212400
A26: 332 | B26: 8 | C26: 2-İştiraklere Borçlar | D26: 0 | F26: 0
A27: 333 | B27: 8 | C27: 3-Bağlı Ortaklıklara Borçlar | D27: 0 | F27: 0
A28: 335 | B28: 8 | C28: 4-Personele Borçlar | D28: 25604.48 | F28: 15011.88
A29: 336 | B29: 8 | C29: 5-Diğer Çeşitli Borçlar | D29: 0 | F29: 0
A30: 337 | B30: 7 | C30: 6-Diğer Borç Senetleri Reeskontu (-) | D30: 0 | F30: 0
B31: * | C31: D-Alınan Avanslar | E31: =SUM(D32:D33) -> 0 | G31: =SUM(F32:F33) -> 0
A32: 340 | B32: 8 | C32: 1-Alınan Sipariş Avansları | D32: 0 | F32: 0
A33: 349 | B33: 8 | C33: 2-Alınan Diğer Avanslar | D33: 0 | F33: 0
B34: * | C34: E-Yıllara Yaygın İnşaat ve Onarım Hakedişleri | E34: =SUM(D35:D36) -> 0 | G34: =SUM(F35:F36) -> 0
A35: 350 | B35: 8 | C35: 1-Yıllara Yaygın İnşaat ve Onarım Hakediş Bedelleri | D35: 0 | F35: 0
A36: 358 | B36: 8 | C36: 2-Yıllara Yaygın İnşaat Enflasyon Düzeltme Hesabı | D36: 0 | F36: 0
B37: * | C37: F-Ödenecek Vergi ve Diğer Yükümlülükler | E37: =SUM(D38:D41) -> 148045.96 | G37: =SUM(F38:F41) -> 62380.19
A38: 360 | B38: 8 | C38: 1-Ödenecek Vergi ve Fonlar | D38: 129597.37 | F38: 54487.17
A39: 361 | B39: 8 | C39: 2-Ödenecek Sosyal Güvenlik Kesintileri | D39: 18448.59 | F39: 7893.02
A40: 368 | B40: 8 | C40: 3-Vadesi Geçm. Ert. veya Taks. Vergi ve Diğ. Yük. | D40: 0 | F40: 0
A41: 369 | B41: 8 | C41: 4-Ödenecek Diğer Yükümlülükler | D41: 0 | F41: 0
B42: * | C42: G-Borç ve Gider Karşılıkları | E42: =IF(D43=D44,0.00001+SUM(D45:D47),D43-D44+SUM(D45:D47)) -> -1858917.83 | G42: =IF(F43=F44,0.00001+SUM(F45:F47),F43-F44+SUM(F45:F47)) -> -644345.31
A43: 370 | B43: 8 | C43: 1-Dönem Kârı Vergi ve Diğer Yasal Yük.Karşılıkları | D43: ='GELİR TAB'!E58 -> 0 | F43: ='GELİR TAB'!G58 -> 0
A44: 371 | B44: 7 | C44: 2-Dönem Kârının Peşin Ödenen Vergi ve Diğ.Yük.(-) | D44: 1858917.83 | F44: 644345.31
A45: 372 | B45: 8 | C45: 3-Kıdem Tazminatı Karşılığı | D45: 0 | F45: 0
A46: 373 | B46: 8 | C46: 4-Maliyet Giderleri Karşılığı | D46: 0 | F46: 0
A47: 379 | B47: 8 | C47: 5-Diğer Borç ve Gider Karşılıkları | D47: 0 | F47: 0
B48: * | C48: H-Gelecek Aylara Ait Gelirler ve Gider Tahakkukları | E48: =SUM(D49:D50) -> 1800150.26 | G48: =SUM(F49:F50) -> 395.48
A49: 380 | B49: 8 | C49: 1-Gelecek Aylara Ait Gelirler | D49: 121815.45 | F49: 395.48
A50: 381 | B50: 8 | C50: 2-Gider Tahakkukları | D50: 1678334.81 | F50: 0
B51: * | C51: I-Diğer Kısa Vadeli Yabancı Kaynaklar | E51: =SUM(D52:D56) -> 0 | G51: =SUM(F52:F56) -> 0
A52: 391 | B52: 8 | C52: 1-Hesaplanan KDV | D52: 0 | F52: 0
A53: 392 | B53: 8 | C53: 2-Diğer KDV | D53: 0 | F53: 0
A54: 393 | B54: 8 | C54: 3-Merkez ve Şubeler Cari Hesabı | D54: 0 | F54: 0
A55: 397 | B55: 8 | C55: 4-Sayım ve Tesellüm Fazlaları | D55: 0 | F55: 0
A56: 399 | B56: 8 | C56: 5-Diğer Çeşitli Yabancı Kaynaklar | D56: 0 | F56: 0
B57: * | C57: UZUN VADELİ YABANCI KAYNAKLAR TOPLAMI | E57: =SUM(E58:E88) -> 3629.67 | G57: =SUM(G58:G88) -> 0
B58: * | C58: A-Mali Borçlar | E58: =SUM(D59:D60,D62:D63,D65)-SUM(D61,D64) -> 0 | G58: =SUM(F59:F60,F62:F63,F65)-SUM(F61,F64) -> 0
A59: 400 | B59: 8 | C59: 1-Banka Kredileri | D59: 0 | F59: 0
A60: 401 | B60: 8 | C60: 2-Finansal Kiralama İşlemlerinden Borçlar | D60: 0 | F60: 0
A61: 402 | B61: 7 | C61: 3-Ertelenmiş Finansal Kiralama Borçlanma Maliyetleri (-) | D61: 0 | F61: 0
A62: 405 | B62: 8 | C62: 4-Çıkarılmış Tahviller | D62: 0 | F62: 0
A63: 407 | B63: 8 | C63: 5-Çıkarılmış Diğer Menkul Kıymetler | D63: 0 | F63: 0
A64: 408 | B64: 7 | C64: 6-Menkul Kıymetler İhraç Farkı (-) | D64: 0 | F64: 0
A65: 409 | B65: 8 | C65: 7-Diğer Mali Borçlar | D65: 0 | F65: 0
B66: * | C66: B-Ticari Borçlar | E66: =SUM(D67:D68,D70:D71)-D69 -> 3629.67 | G66: =SUM(F67:F68,F70:F71)-F69 -> 0
A67: 420 | B67: 8 | C67: 1-Satıcılar | D67: 0 | F67: 0
A68: 421 | B68: 8 | C68: 2-Borç Senetleri | D68: 0 | F68: 0
A69: 422 | B69: 7 | C69: 3-Borç Senetleri Reeskontu (-) | D69: 0 | F69: 0
A70: 426 | B70: 8 | C70: 4-Alınan Depozito ve Teminatlar | D70: 3629.67 | F70: 0
A71: 429 | B71: 8 | C71: 5-Diğer Ticari Borçlar | D71: 0 | F71: 0
B72: * | C72: C-Diğer Borçlar | E72: =SUM(D73:D76,D78)-D77 -> 0 | G72: =SUM(F73:F76,F78)-F77 -> 0
A73: 431 | B73: 8 | C73: 1-Ortaklara Borçlar | D73: 0 | F73: 0
A74: 432 | B74: 8 | C74: 2-İştiraklere Borçlar | D74: 0 | F74: 0
A75: 433 | B75: 8 | C75: 3-Bağlı Ortaklıklara Borçlar | D75: 0 | F75: 0
A76: 436 | B76: 8 | C76: 4-Diğer Çeşitli Borçlar | D76: 0 | F76: 0
A77: 437 | B77: 7 | C77: 5-Diğer Borç Senetleri Reeskontu (-) | D77: 0 | F77: 0
A78: 438 | B78: 8 | C78: 6-Kamuya Olan Ertelenmiş ve Taks.Borçlar | D78: 0 | F78: 0
B79: * | C79: D-Alınan Avanslar | E79: =SUM(D80:D81) -> 0 | G79: =SUM(F80:F81) -> 0
A80: 440 | B80: 8 | C80: 1- Alınan Sipariş Avansları | D80: 0 | F80: 0
A81: 449 | B81: 8 | C81: 2- Alınan Diğer Avanslar | D81: 0 | F81: 0
B82: * | C82: E-Borç ve Gider Karşılıkları | E82: =SUM(D83:D84) -> 0 | G82: =SUM(F83:F84) -> 0
A83: 472 | B83: 8 | C83: 1-Kıdem Tazminatı Karşılıkları | D83: 0 | F83: 0
A84: 479 | B84: 8 | C84: 2-Diğer Borç ve Gider Karşılıkları | D84: 0 | F84: 0
B85: * | C85: F-Gelecek Yıllara Ait Gelirler ve Gider Tahakkukları | E85: =SUM(D86:D87) -> 0 | G85: =SUM(F86:F87) -> 0
A86: 480 | B86: 8 | C86: 1-Gelecek Yıllara Ait Gelirler | D86: 0 | F86: 0
A87: 481 | B87: 8 | C87: 2-Gider Tahakkukları | D87: 0 | F87: 0
B88: * | C88: G-Diğer Uzun Vadeli Yabancı Kaynaklar | E88: =SUM(D89:D91) -> 0 | G88: =SUM(F89:F91) -> 0
A89: 492 | B89: 8 | C89: 1-Gelecek Yıllara Ertelenen veya Terkin Edilen KDV | D89: 0 | F89: 0
A90: 493 | B90: 8 | C90: 2-Tesise Katılma Payları | D90: 0 | F90: 0
A91: 499 | B91: 8 | C91: 3-Diğer Uzun Vadeli Yabancı Kaynaklar Toplamı | D91: 0 | F91: 0
B92: * | C92: ÖZ KAYNAKLAR TOPLAMI | E92: =SUM(E93:E110)-E112+E114 -> 8928499.5 | G92: =SUM(G93:G110)-G112+G114 -> 3248739.88
B93: * | C93: A-Ödenmiş Sermaye | E93: =SUM(D94,D96)-D95-D97 -> 169944.2 | G93: =SUM(F94,F96)-F95-F97 -> 169944.2
A94: 500 | B94: 8 | C94: 1-Sermaye | D94: 160000 | F94: 160000
A95: 501 | B95: 7 | C95: 2-Ödenmemiş Sermaye (-) | D95: 0 | F95: 0
A96: 502 | B96: 8 | C96: 3-Sermaye Düzeltmesi Olumlu Farkları | D96: 9944.2 | F96: 9944.2
A97: 503 | B97: 7 | C97: 4-Sermaye Düzeltmesi Olumsuz Farkları (-) | D97: 0 | F97: 0
B98: * | C98: B-Sermaye Yedekleri | E98: =SUM(D99:D103) -> 0 | G98: =SUM(F99:F103) -> 0
A99: 520 | B99: 8 | C99: 1-Hisse Senedi İhraç Primleri | D99: 0 | F99: 0
A100: 521 | B100: 8 | C100: 2-Hisse Senedi İptal Karları | D100: 0 | F100: 0
A101: 522 | B101: 8 | C101: 3-M.D.V. Yeniden Değerleme Artışları | D101: 0 | F101: 0
A102: 523 | B102: 8 | C102: 4-İştirakler Yeniden Değerleme Artışları | D102: 0 | F102: 0
A103: 529 | B103: 8 | C103: 5-Diğer Sermaye Yedekleri | D103: 0 | F103: 0
B104: * | C104: C-Kar Yedekleri | E104: =SUM(D105:D109) -> 2829.22 | G104: =SUM(F105:F109) -> 2829.22
A105: 540 | B105: 8 | C105: 1-Yasal Yedekler | D105: 2829.22 | F105: 2829.22
A106: 541 | B106: 8 | C106: 2-Statü Yedekleri | D106: 0 | F106: 0
A107: 542 | B107: 8 | C107: 3-Olağanüstü Yedekler | D107: 0 | F107: 0
A108: 548 | B108: 8 | C108: 4-Diğer Kar Yedekleri | D108: 0 | F108: 0
A109: 549 | B109: 8 | C109: 5-Özel Fonlar | D109: 0 | F109: 0
B110: * | C110: D-Geçmiş Yıl Karları | E110: =D111 -> 0 | G110: =F111 -> 0
A111: 570 | B111: 8 | C111: 1-Geçmiş Yıl Karları | D111: 0 | F111: 0
B112: * | C112: E-Geçmiş Yıllar Zararları(-) | E112: =D113 -> 0 | G112: =F113 -> 0
A113: 580 | B113: 7 | C113: 1- Geçmiş Yıllar Zararları (-) | D113: 0 | F113: 0
B114: * | C114: F-Dönem Net Karı (Zararı) | E114: =D115+D116 -> 8755726.08 | G114: =F115+F116 -> 3075966.46
A115: 590 | B115: 8 | C115: 1-Dönem Net Karı | D115: =IF('GELİR TAB'!E59>0,'GELİR TAB'!E59,0) -> 8755726.08 | F115: =IF('GELİR TAB'!G59>0,'GELİR TAB'!G59,0) -> 3075966.46
A116: 591 | B116: 7 | C116: 2-Dönem Net Zararı (-) | D116: =IF('GELİR TAB'!E59<0,'GELİR TAB'!E59,0) -> 0 | F116: =IF('GELİR TAB'!G59<0,'GELİR TAB'!G59,0) -> 0
B117: * | C117: PASİF(KAYNAKLAR) TOPLAMI | E117: =E92+E57+E7 -> 10153720.87 | G117: =ROUND(G92+G57+G7,2) -> 5170641.96
E119: =IF(ROUND(E117,2)=ROUND('BİLANÇO-A'!E135,2),"OK", "FARK VAR!") -> OK | G119: =IF(ROUND(G117,2)=ROUND('BİLANÇO-A'!G135,2),"OK", "FARK VAR!") -> OK
E120: =ROUND(E117-'BİLANÇO-A'!E135,2) -> 0 | G120: =ROUND(G117-'BİLANÇO-A'!G135,2) -> 0

Sheet e-pasif (hidden)
A1: III. KISA VADELİ YABANCI KAYNAKLAR
A2: A-Mali Borçlar
A3: 1-Banka Kredileri | B3: =IF('BİLANÇO-P'!D9=0,"",'BİLANÇO-P'!D9) ->  | C3: =IF('BİLANÇO-P'!F9=0,"",'BİLANÇO-P'!F9) -> 
A4: 2-Finansal Kiralama İşlemlerinden Borçlar | B4: =IF('BİLANÇO-P'!D10=0,"",'BİLANÇO-P'!D10) ->  | C4: =IF('BİLANÇO-P'!F10=0,"",'BİLANÇO-P'!F10) -> 
A5: 3-Ertelenmiş Finansal Kiralama Borçlanma Maliyetleri (-) | B5: =IF('BİLANÇO-P'!D11=0,"",'BİLANÇO-P'!D11) ->  | C5: =IF('BİLANÇO-P'!F11=0,"",'BİLANÇO-P'!F11) -> 
A6: 4-Uzun Vadeli Kredilerin Anapara Taksitleri ve Faizleri | B6: =IF('BİLANÇO-P'!D12=0,"",'BİLANÇO-P'!D12) ->  | C6: =IF('BİLANÇO-P'!F12=0,"",'BİLANÇO-P'!F12) -> 
A7: 5-Tahvil, Anapara, Borç Taksit ve Faizleri | B7: =IF('BİLANÇO-P'!D13=0,"",'BİLANÇO-P'!D13) ->  | C7: =IF('BİLANÇO-P'!F13=0,"",'BİLANÇO-P'!F13) -> 
A8: 6-Çıkarılmış Bonolar ve Senetler | B8: =IF('BİLANÇO-P'!D14=0,"",'BİLANÇO-P'!D14) ->  | C8: =IF('BİLANÇO-P'!F14=0,"",'BİLANÇO-P'!F14) -> 
A9: 7-Çıkarılmış Diğer Menkul Kıymetler | B9: =IF('BİLANÇO-P'!D15=0,"",'BİLANÇO-P'!D15) ->  | C9: =IF('BİLANÇO-P'!F15=0,"",'BİLANÇO-P'!F15) -> 
A10: 8-Menkul Kıymetler İhraç Farkı (-) | B10: =IF('BİLANÇO-P'!D16=0,"",'BİLANÇO-P'!D16) ->  | C10: =IF('BİLANÇO-P'!F16=0,"",'BİLANÇO-P'!F16) -> 
A11: 9-Diğer Mali Borçlar | B11: =IF('BİLANÇO-P'!D17=0,"",'BİLANÇO-P'!D17) ->  | C11: =IF('BİLANÇO-P'!F17=0,"",'BİLANÇO-P'!F17) -> 
A12: B-Ticari Borçlar
A13: 1-Satıcılar | B13: =IF('BİLANÇO-P'!D19=0,"",'BİLANÇO-P'!D19) -> 124756.56 | C13: =IF('BİLANÇO-P'!F19=0,"",'BİLANÇO-P'!F19) -> 2038557.56
A14: 2-Borç Senetleri | B14: =IF('BİLANÇO-P'!D20=0,"",'BİLANÇO-P'!D20) ->  | C14: =IF('BİLANÇO-P'!F20=0,"",'BİLANÇO-P'!F20) -> 
A15: 3-Borç Senetleri Reeskontu (-) | B15: =IF('BİLANÇO-P'!D21=0,"",'BİLANÇO-P'!D21) ->  | C15: =IF('BİLANÇO-P'!F21=0,"",'BİLANÇO-P'!F21) -> 
A16: 4-Alınan Depozito ve Teminatlar | B16: =IF('BİLANÇO-P'!D22=0,"",'BİLANÇO-P'!D22) -> 322654.91 | C16: =IF('BİLANÇO-P'!F22=0,"",'BİLANÇO-P'!F22) -> 237025.48
A17: 5-Diğer Ticari Borçlar | B17: =IF('BİLANÇO-P'!D23=0,"",'BİLANÇO-P'!D23) -> 659297.36 | C17: =IF('BİLANÇO-P'!F23=0,"",'BİLANÇO-P'!F23) -> 476.8
A18: C-Diğer Borçlar
A19: 1-Ortaklara Borçlar | B19: =IF('BİLANÇO-P'!D25=0,"",'BİLANÇO-P'!D25) ->  | C19: =IF('BİLANÇO-P'!F25=0,"",'BİLANÇO-P'!F25) -> 212400
A20: 2-İştiraklere Borçlar | B20: =IF('BİLANÇO-P'!D26=0,"",'BİLANÇO-P'!D26) ->  | C20: =IF('BİLANÇO-P'!F26=0,"",'BİLANÇO-P'!F26) -> 
A21: 3-Bağlı Ortaklıklara Borçlar | B21: =IF('BİLANÇO-P'!D27=0,"",'BİLANÇO-P'!D27) ->  | C21: =IF('BİLANÇO-P'!F27=0,"",'BİLANÇO-P'!F27) -> 
A22: 4-Personele Borçlar | B22: =IF('BİLANÇO-P'!D28=0,"",'BİLANÇO-P'!D28) -> 25604.48 | C22: =IF('BİLANÇO-P'!F28=0,"",'BİLANÇO-P'!F28) -> 15011.88
A23: 5-Diğer Çeşitli Borçlar | B23: =IF('BİLANÇO-P'!D29=0,"",'BİLANÇO-P'!D29) ->  | C23: =IF('BİLANÇO-P'!F29=0,"",'BİLANÇO-P'!F29) -> 
A24: 6-Diğer Borç Senetleri Reeskontu (-) | B24: =IF('BİLANÇO-P'!D30=0,"",'BİLANÇO-P'!D30) ->  | C24: =IF('BİLANÇO-P'!F30=0,"",'BİLANÇO-P'!F30) -> 
A25: D-Alınan Avanslar
A26: 1-Alınan Sipariş Avansları | B26: =IF('BİLANÇO-P'!D32=0,"",'BİLANÇO-P'!D32) ->  | C26: =IF('BİLANÇO-P'!F32=0,"",'BİLANÇO-P'!F32) -> 
A27: 2-Alınan Diğer Avanslar | B27: =IF('BİLANÇO-P'!D33=0,"",'BİLANÇO-P'!D33) ->  | C27: =IF('BİLANÇO-P'!F33=0,"",'BİLANÇO-P'!F33) -> 
A28: E-Yıllara Yaygın İnşaat ve Onarım Hakedişleri
A29: 1-Yıllara Yaygın İnşaat ve Onarım Hakediş Bedelleri | B29: =IF('BİLANÇO-P'!D35=0,"",'BİLANÇO-P'!D35) ->  | C29: =IF('BİLANÇO-P'!F35=0,"",'BİLANÇO-P'!F35) -> 
A30: 2-Yıllara Yaygın İnşaat Enflasyon Düzeltme Hesabı | B30: =IF('BİLANÇO-P'!D36=0,"",'BİLANÇO-P'!D36) ->  | C30: =IF('BİLANÇO-P'!F36=0,"",'BİLANÇO-P'!F36) -> 
A31: F-Ödenecek Vergi ve Diğer Yükümlülükler
A32: 1-Ödenecek Vergi ve Fonlar | B32: =IF('BİLANÇO-P'!D38=0,"",'BİLANÇO-P'!D38) -> 129597.37 | C32: =IF('BİLANÇO-P'!F38=0,"",'BİLANÇO-P'!F38) -> 54487.17
A33: 2-Ödenecek Sosyal Güvenlik Kesintileri | B33: =IF('BİLANÇO-P'!D39=0,"",'BİLANÇO-P'!D39) -> 18448.59 | C33: =IF('BİLANÇO-P'!F39=0,"",'BİLANÇO-P'!F39) -> 7893.02
A34: 3-Vadesi Geçm. Ert. veya Taks. Vergi ve Diğ. Yük. | B34: =IF('BİLANÇO-P'!D40=0,"",'BİLANÇO-P'!D40) ->  | C34: =IF('BİLANÇO-P'!F40=0,"",'BİLANÇO-P'!F40) -> 
A35: 4-Ödenecek Diğer Yükümlülükler | B35: =IF('BİLANÇO-P'!D41=0,"",'BİLANÇO-P'!D41) ->  | C35: =IF('BİLANÇO-P'!F41=0,"",'BİLANÇO-P'!F41) -> 
A36: G-Borç ve Gider Karşılıkları
A37: 1-Dönem Kârı Vergi ve Diğer Yasal Yük.Karşılıkları | B37: =IF('BİLANÇO-P'!D43=0,"",'BİLANÇO-P'!D43) ->  | C37: =IF('BİLANÇO-P'!F43=0,"",'BİLANÇO-P'!F43) -> 
A38: 2-Dönem Kârının Peşin Ödenen Vergi ve Diğ.Yük.(-) | B38: =IF('BİLANÇO-P'!D44=0,"",'BİLANÇO-P'!D44) -> 1858917.83 | C38: =IF('BİLANÇO-P'!F44=0,"",'BİLANÇO-P'!F44) -> 644345.31
A39: 3-Kıdem Tazminatı Karşılığı | B39: =IF('BİLANÇO-P'!D45=0,"",'BİLANÇO-P'!D45) ->  | C39: =IF('BİLANÇO-P'!F45=0,"",'BİLANÇO-P'!F45) -> 
A40: 4-Maliyet Giderleri Karşılığı | B40: =IF('BİLANÇO-P'!D46=0,"",'BİLANÇO-P'!D46) ->  | C40: =IF('BİLANÇO-P'!F46=0,"",'BİLANÇO-P'!F46) -> 
A41: 5-Diğer Borç ve Gider Karşılıkları | B41: =IF('BİLANÇO-P'!D47=0,"",'BİLANÇO-P'!D47) ->  | C41: =IF('BİLANÇO-P'!F47=0,"",'BİLANÇO-P'!F47) -> 
A42: H-Gelecek Aylara Ait Gelirler ve Gider Tahakkukları
A43: 1-Gelecek Aylara Ait Gelirler | B43: =IF('BİLANÇO-P'!D49=0,"",'BİLANÇO-P'!D49) -> 121815.45 | C43: =IF('BİLANÇO-P'!F49=0,"",'BİLANÇO-P'!F49) -> 395.48
A44: 2-Gider Tahakkukları | B44: =IF('BİLANÇO-P'!D50=0,"",'BİLANÇO-P'!D50) -> 1678334.81 | C44: =IF('BİLANÇO-P'!F50=0,"",'BİLANÇO-P'!F50) -> 
A45: I-Diğer Kısa Vadeli Yabancı Kaynaklar
A46: 1-Hesaplanan KDV | B46: =IF('BİLANÇO-P'!D52=0,"",'BİLANÇO-P'!D52) ->  | C46: =IF('BİLANÇO-P'!F52=0,"",'BİLANÇO-P'!F52) -> 
A47: 2-Diğer KDV | B47: =IF('BİLANÇO-P'!D53=0,"",'BİLANÇO-P'!D53) ->  | C47: =IF('BİLANÇO-P'!F53=0,"",'BİLANÇO-P'!F53) -> 
A48: 3-Merkez ve Şubeler Cari Hesabı | B48: =IF('BİLANÇO-P'!D54=0,"",'BİLANÇO-P'!D54) ->  | C48: =IF('BİLANÇO-P'!F54=0,"",'BİLANÇO-P'!F54) -> 
A49: 4-Sayım ve Tesellüm Fazlaları | B49: =IF('BİLANÇO-P'!D55=0,"",'BİLANÇO-P'!D55) ->  | C49: =IF('BİLANÇO-P'!F55=0,"",'BİLANÇO-P'!F55) -> 
A50: 5-Diğer Çeşitli Yabancı Kaynaklar | B50: =IF('BİLANÇO-P'!D56=0,"",'BİLANÇO-P'!D56) ->  | C50: =IF('BİLANÇO-P'!F56=0,"",'BİLANÇO-P'!F56) -> 
A51: IV. UZUN VADELİ YABANCI KAYNAKLAR
A52: A-Mali Borçlar
A53: 1-Banka Kredileri | B53: =IF('BİLANÇO-P'!D59=0,"",'BİLANÇO-P'!D59) ->  | C53: =IF('BİLANÇO-P'!F59=0,"",'BİLANÇO-P'!F59) -> 
A54: 2-Finansal Kiralama İşlemlerinden Borçlar | B54: =IF('BİLANÇO-P'!D60=0,"",'BİLANÇO-P'!D60) ->  | C54: =IF('BİLANÇO-P'!F60=0,"",'BİLANÇO-P'!F60) -> 
A55: 3-Ertelenmiş Finansal Kiralama Borçlanma Maliyetleri (-) | B55: =IF('BİLANÇO-P'!D61=0,"",'BİLANÇO-P'!D61) ->  | C55: =IF('BİLANÇO-P'!F61=0,"",'BİLANÇO-P'!F61) -> 
A56: 4-Çıkarılmış Tahviller | B56: =IF('BİLANÇO-P'!D62=0,"",'BİLANÇO-P'!D62) ->  | C56: =IF('BİLANÇO-P'!F62=0,"",'BİLANÇO-P'!F62) -> 
A57: 5-Çıkarılmış Diğer Menkul Kıymetler | B57: =IF('BİLANÇO-P'!D63=0,"",'BİLANÇO-P'!D63) ->  | C57: =IF('BİLANÇO-P'!F63=0,"",'BİLANÇO-P'!F63) -> 
A58: 6-Menkul Kıymetler İhraç Farkı (-) | B58: =IF('BİLANÇO-P'!D64=0,"",'BİLANÇO-P'!D64) ->  | C58: =IF('BİLANÇO-P'!F64=0,"",'BİLANÇO-P'!F64) -> 
A59: 7-Diğer Mali Borçlar | B59: =IF('BİLANÇO-P'!D65=0,"",'BİLANÇO-P'!D65) ->  | C59: =IF('BİLANÇO-P'!F65=0,"",'BİLANÇO-P'!F65) -> 
A60: B-Ticari Borçlar
A61: 1-Satıcılar | B61: =IF('BİLANÇO-P'!D67=0,"",'BİLANÇO-P'!D67) ->  | C61: =IF('BİLANÇO-P'!F67=0,"",'BİLANÇO-P'!F67) -> 
A62: 2-Borç Senetleri | B62: =IF('BİLANÇO-P'!D68=0,"",'BİLANÇO-P'!D68) ->  | C62: =IF('BİLANÇO-P'!F68=0,"",'BİLANÇO-P'!F68) -> 
A63: 3-Borç Senetleri Reeskontu (-) | B63: =IF('BİLANÇO-P'!D69=0,"",'BİLANÇO-P'!D69) ->  | C63: =IF('BİLANÇO-P'!F69=0,"",'BİLANÇO-P'!F69) -> 
A64: 4-Alınan Depozito ve Teminatlar | B64: =IF('BİLANÇO-P'!D70=0,"",'BİLANÇO-P'!D70) -> 3629.67 | C64: =IF('BİLANÇO-P'!F70=0,"",'BİLANÇO-P'!F70) -> 
A65: 5-Diğer Ticari Borçlar | B65: =IF('BİLANÇO-P'!D71=0,"",'BİLANÇO-P'!D71) ->  | C65: =IF('BİLANÇO-P'!F71=0,"",'BİLANÇO-P'!F71) -> 
A66: C-Diğer Borçlar
A67: 1-Ortaklara Borçlar | B67: =IF('BİLANÇO-P'!D73=0,"",'BİLANÇO-P'!D73) ->  | C67: =IF('BİLANÇO-P'!F73=0,"",'BİLANÇO-P'!F73) -> 
A68: 2-İştiraklere Borçlar | B68: =IF('BİLANÇO-P'!D74=0,"",'BİLANÇO-P'!D74) ->  | C68: =IF('BİLANÇO-P'!F74=0,"",'BİLANÇO-P'!F74) -> 
A69: 3-Bağlı Ortaklıklara Borçlar | B69: =IF('BİLANÇO-P'!D75=0,"",'BİLANÇO-P'!D75) ->  | C69: =IF('BİLANÇO-P'!F75=0,"",'BİLANÇO-P'!F75) -> 
A70: 4-Diğer Çeşitli Borçlar | B70: =IF('BİLANÇO-P'!D76=0,"",'BİLANÇO-P'!D76) ->  | C70: =IF('BİLANÇO-P'!F76=0,"",'BİLANÇO-P'!F76) -> 
A71: 5-Diğer Borç Senetleri Reeskontu (-) | B71: =IF('BİLANÇO-P'!D77=0,"",'BİLANÇO-P'!D77) ->  | C71: =IF('BİLANÇO-P'!F77=0,"",'BİLANÇO-P'!F77) -> 
A72: 6-Kamuya Olan Ertelenmiş ve Taks.Borçlar | B72: =IF('BİLANÇO-P'!D78=0,"",'BİLANÇO-P'!D78) ->  | C72: =IF('BİLANÇO-P'!F78=0,"",'BİLANÇO-P'!F78) -> 
A73: D-Alınan Avanslar
A74: 1- Alınan Sipariş Avansları | B74: =IF('BİLANÇO-P'!D80=0,"",'BİLANÇO-P'!D80) ->  | C74: =IF('BİLANÇO-P'!F80=0,"",'BİLANÇO-P'!F80) -> 
A75: 2- Alınan Diğer Avanslar | B75: =IF('BİLANÇO-P'!D81=0,"",'BİLANÇO-P'!D81) ->  | C75: =IF('BİLANÇO-P'!F81=0,"",'BİLANÇO-P'!F81) -> 
A76: E-Borç ve Gider Karşılıkları
A77: 1-Kıdem Tazminatı Karşılıkları | B77: =IF('BİLANÇO-P'!D83=0,"",'BİLANÇO-P'!D83) ->  | C77: =IF('BİLANÇO-P'!F83=0,"",'BİLANÇO-P'!F83) -> 
A78: 2-Diğer Borç ve Gider Karşılıkları | B78: =IF('BİLANÇO-P'!D84=0,"",'BİLANÇO-P'!D84) ->  | C78: =IF('BİLANÇO-P'!F84=0,"",'BİLANÇO-P'!F84) -> 
A79: F-Gelecek Yıllara Ait Gelirler ve Gider Tahakkukları
A80: 1-Gelecek Yıllara Ait Gelirler | B80: =IF('BİLANÇO-P'!D86=0,"",'BİLANÇO-P'!D86) ->  | C80: =IF('BİLANÇO-P'!F86=0,"",'BİLANÇO-P'!F86) -> 
A81: 2-Gider Tahakkukları | B81: =IF('BİLANÇO-P'!D87=0,"",'BİLANÇO-P'!D87) ->  | C81: =IF('BİLANÇO-P'!F87=0,"",'BİLANÇO-P'!F87) -> 
A82: G-Diğer Uzun Vadeli Yabancı Kaynaklar
A83: 1-Gelecek Yıllara Ertelenen veya Terkin Edilen KDV | B83: =IF('BİLANÇO-P'!D89=0,"",'BİLANÇO-P'!D89) ->  | C83: =IF('BİLANÇO-P'!F89=0,"",'BİLANÇO-P'!F89) -> 
A84: 2-Tesise Katılma Payları | B84: =IF('BİLANÇO-P'!D90=0,"",'BİLANÇO-P'!D90) ->  | C84: =IF('BİLANÇO-P'!F90=0,"",'BİLANÇO-P'!F90) -> 
A85: 3-Diğer Uzun Vadeli Yabancı Kaynaklar Toplamı | B85: =IF('BİLANÇO-P'!D91=0,"",'BİLANÇO-P'!D91) ->  | C85: =IF('BİLANÇO-P'!F91=0,"",'BİLANÇO-P'!F91) -> 
A86: V. ÖZ KAYNAKLAR
A87: A-Ödenmiş Sermaye
A88: 1-Sermaye | B88: =IF('BİLANÇO-P'!D94=0,"",'BİLANÇO-P'!D94) -> 160000 | C88: =IF('BİLANÇO-P'!F94=0,"",'BİLANÇO-P'!F94) -> 160000
A89: 2-Ödenmemiş Sermaye (-) | B89: =IF('BİLANÇO-P'!D95=0,"",'BİLANÇO-P'!D95) ->  | C89: =IF('BİLANÇO-P'!F95=0,"",'BİLANÇO-P'!F95) -> 
A90: 3-Sermaye Düzeltmesi Olumlu Farkları | B90: =IF('BİLANÇO-P'!D96=0,"",'BİLANÇO-P'!D96) -> 9944.2 | C90: =IF('BİLANÇO-P'!F96=0,"",'BİLANÇO-P'!F96) -> 9944.2
A91: 4-Sermaye Düzeltmesi Olumsuz Farkları (-) | B91: =IF('BİLANÇO-P'!D97=0,"",'BİLANÇO-P'!D97) ->  | C91: =IF('BİLANÇO-P'!F97=0,"",'BİLANÇO-P'!F97) -> 
A92: B-Sermaye Yedekleri
A93: 1-Hisse Senedi İhraç Primleri | B93: =IF('BİLANÇO-P'!D99=0,"",'BİLANÇO-P'!D99) ->  | C93: =IF('BİLANÇO-P'!F99=0,"",'BİLANÇO-P'!F99) -> 
A94: 2-Hisse Senedi İptal Karları | B94: =IF('BİLANÇO-P'!D100=0,"",'BİLANÇO-P'!D100) ->  | C94: =IF('BİLANÇO-P'!F100=0,"",'BİLANÇO-P'!F100) -> 
A95: 3-M.D.V. Yeniden Değerleme Artışları | B95: =IF('BİLANÇO-P'!D101=0,"",'BİLANÇO-P'!D101) ->  | C95: =IF('BİLANÇO-P'!F101=0,"",'BİLANÇO-P'!F101) -> 
A96: 4-İştirakler Yeniden Değerleme Artışları | B96: =IF('BİLANÇO-P'!D102=0,"",'BİLANÇO-P'!D102) ->  | C96: =IF('BİLANÇO-P'!F102=0,"",'BİLANÇO-P'!F102) -> 
A97: 5-Diğer Sermaye Yedekleri | B97: =IF('BİLANÇO-P'!D103=0,"",'BİLANÇO-P'!D103) ->  | C97: =IF('BİLANÇO-P'!F103=0,"",'BİLANÇO-P'!F103) -> 
A98: C-Kar Yedekleri
A99: 1-Yasal Yedekler | B99: =IF('BİLANÇO-P'!D105=0,"",'BİLANÇO-P'!D105) -> 2829.22 | C99: =IF('BİLANÇO-P'!F105=0,"",'BİLANÇO-P'!F105) -> 2829.22
A100: 2-Statü Yedekleri | B100: =IF('BİLANÇO-P'!D106=0,"",'BİLANÇO-P'!D106) ->  | C100: =IF('BİLANÇO-P'!F106=0,"",'BİLANÇO-P'!F106) -> 
A101: 3-Olağanüstü Yedekler | B101: =IF('BİLANÇO-P'!D107=0,"",'BİLANÇO-P'!D107) ->  | C101: =IF('BİLANÇO-P'!F107=0,"",'BİLANÇO-P'!F107) -> 
A102: 4-Diğer Kar Yedekleri | B102: =IF('BİLANÇO-P'!D108=0,"",'BİLANÇO-P'!D108) ->  | C102: =IF('BİLANÇO-P'!F108=0,"",'BİLANÇO-P'!F108) -> 
A103: 5-Özel Fonlar | B103: =IF('BİLANÇO-P'!D109=0,"",'BİLANÇO-P'!D109) ->  | C103: =IF('BİLANÇO-P'!F109=0,"",'BİLANÇO-P'!F109) -> 
A104: D-Geçmiş Yıl Karları
A105: 1-Geçmiş Yıl Karları | B105: =IF('BİLANÇO-P'!D111=0,"",'BİLANÇO-P'!D111) ->  | C105: =IF('BİLANÇO-P'!F111=0,"",'BİLANÇO-P'!F111) -> 
A106: E-Geçmiş Yıllar Zararları(-)
A107: 1- Geçmiş Yıllar Zararları (-) | B107: =IF('BİLANÇO-P'!D113=0,"",'BİLANÇO-P'!D113) ->  | C107: =IF('BİLANÇO-P'!F113=0,"",'BİLANÇO-P'!F113) -> 
A108: F-Dönem Net Karı (Zararı)
A109: 1-Dönem Net Karı | B109: =IF('BİLANÇO-P'!D115=0,"",'BİLANÇO-P'!D115) -> 8755726.08 | C109: =IF('BİLANÇO-P'!F115=0,"",'BİLANÇO-P'!F115) -> 3075966.46
A110: 2-Dönem Net Zararı (-) | B110: =IF('BİLANÇO-P'!D116=0,"",'BİLANÇO-P'!D116) ->  | C110: =IF('BİLANÇO-P'!F116=0,"",'BİLANÇO-P'!F116) -> 
A111: PASİF(KAYNAKLAR) TOPLAMI
